Cogmind - Beta 13 X2 @@@ ROGUE MODE // 2024.01.10 @ 04:42:25 Player: Boris Result: Establishing Free Derelict Territories! Performance ------------- Evolutions (9) 4500 Regions Visited (32) 6400 Robots Destroyed (256) 1280 Value Destroyed (10730) 10730 Prototype IDs (101) 2020 Alien Tech Used (10) 2000 Bonus (33316) 33316 TOTAL SCORE: 60246 Bonus ------- High Alert Combat Kills 773 Follower Combat Kills 2701 Network Hubs Disabled 400 Met Data Miner 300 Met Zhirov 300 Met Warlord at Base 500 MAIN.C Attacked Warlord 500 Built Enhanced Grunts 300 A7 Reached Mainframe 300 Met Warlord at Research 2000 Scanned by Researcher 500 Destroyed MAIN.C Guards 500 Met MAIN.C 5000 Hacked MAIN.C 300 Destroyed MAIN.C Shell 5000 Destroyed MAIN.C 10000 Met Warlord at Command 2000 Win 3000 Friendly Fire -1058 Cogmind --------- Core Integrity 1078/1600 Matter 280/300 Energy 1080/1080 System Corruption 8% Temperature Cool (0) Movement Hovering (32) Location Free Derelict Territories Parts ------- > --- POWER (3) -------- Light Quantum Reactor Improved Quantum Reactor Zero-point Reactor > --- PROPULSION (9) --- Improved Antigrav System Improved Antigrav System Improved Linear Gravjet Antigrav Array Combat Linear Gravjet Combat Linear Gravjet Combat Linear Gravjet Combat Linear Gravjet > --- UTILITY (11) ----- Experimental Cooling System Spectral Analyzer Improved Melee Analysis Suite Experimental Core Analyzer Armor Integrity Analyzer Femtoactuators Experimental Actuator Array Advanced Phase Shifter Graphene Brace AEGIS Remote Shield > --- WEAPON (3) ------- Vortex Lance Vortex Lance > --- INVENTORY (5) ---- Spacefold Activator Multirail Advanced Remote Datajack Peak State ------------ > --- POWER ------------ Quantum Reactor Light Quantum Reactor Improved Quantum Reactor > --- PROPULSION ------- Improved Antigrav System Improved Linear Gravjet Cooled Antigrav System Antigrav Array Combat Linear Gravjet Combat Linear Gravjet Combat Linear Gravjet Combat Linear Gravjet > --- UTILITY ---------- Large Storage Unit Spectral Analyzer Experimental Melee Analysis Suite Experimental Core Analyzer Armor Integrity Analyzer Femtoactuators Advanced Reaction Control System Advanced Phase Shifter Graphene Brace Experimental Hardlight Generator Experimental Hacking Suite > --- WEAPON ----------- Multirail Sigix Broadsword > --- INVENTORY -------- Light Quantum Reactor Improved Antigrav System Improved Antigrav System Advanced Energy Well Advanced Sensor Array Seismic Detector Experimental Actuator Array Experimental Transmission Jammer Improved Cloaking Device Integrity Redistributor Spacefold Activator Z-bomb Delivery System Advanced Remote Datajack Vortex Lance Vortex Lance [Rating: 240] Favorites ----------- Power Light Fission Core Engine Light Ion Engine Power Core Light Fission Core Reactor Micro Antimatter Reactor Propulsion Combat Linear Gravjet Treads Spiked Treads Leg Aluminum Leg Hover Unit Combat Linear Gravjet Flight Unit Flightbrick Utility Advanced Hacking Suite Device Advanced Sensor Array Storage Medium Storage Unit Processor Spectral Analyzer Hackware Advanced Hacking Suite Protection Improved Medium Armor Plating Artifact Spacefold Activator Weapon Greatsword Energy Gun Subdweller Laser Energy Cannon Subdweller Beam Cannon Ballistic Gun Enhanced Autogun Launcher Subdweller Shrapnel Launcher Special Weapon Advanced Remote Datajack Impact Weapon Powered Hammer Slashing Weapon Greatsword Piercing Weapon Vortex Lance Build | -11 -10 -10 -8 -7 -7 -7 -7 -6 -6 -6 -6 -6 -6 -6 -6 -5 -5 -5 -5 -4 -4 -4 -4 -4 -3 -3 -3 -2 -2 -2 -1 -1 ------- Run | Yrd Mat Sub Mat Fac Low Low Dat Pro Fac Was Fac Ext Cet Arc Hub Fac Upp Upp War Pro Fac Upp Upp Zhi Pro Res Qua Res Tes Sec Acc Com Slots Evolved 16 | . . . 4 2 . . . . 2 . . . . . . 2 . . . . 2 . . . . 2 . 2 . . . . Power 1 | . . . . . . . . . 1 . . . . . . . . . . . . . . . . . . . . . . . Propulsion 6 | . . . 3 . . . . . 1 . . . . . . . . . . . . . . . . 1 . 1 . . . . Utility 9 | . . . 1 2 . . . . . . . . . . . 2 . . . . 2 . . . . 1 . 1 . . . . Weapon . | . . . . . . . . . . . . . . . . . . . . . . . . . . . . . . . . . Parts Attached 567 | 7 . 44 44 20 7 6 3 6 6 3 17 12 8 9 24 19 7 5 15 1 37 10 10 7 11 27 26 20 35 54 21 46 Power 43 | 1 . 2 4 2 . 1 . 1 2 . 1 . . . 1 2 . . 4 . 2 1 1 . . 1 3 2 . 2 3 7 Engine 13 | 1 . 2 2 2 . . . . 1 . . . . . 1 2 . . 1 . . . 1 . . . . . . . . . Core 11 | . . . 2 . . 1 . 1 1 . 1 . . . . . . . 1 . 1 1 . . . . . . . 1 1 . Reactor 19 | . . . . . . . . . . . . . . . . . . . 2 . 1 . . . . 1 3 2 . 1 2 7 Propulsion 58 | 2 . 2 12 2 . . . . 1 . 1 . . . . . . . 2 . . . . 3 . 3 5 4 6 4 6 5 Treads 6 | 2 . 2 2 . . . . . . . . . . . . . . . . . . . . . . . . . . . . . Leg 5 | . . . 3 . . . . . . . . . . . . . . . . . . . . 2 . . . . . . . . Wheel . | . . . . . . . . . . . . . . . . . . . . . . . . . . . . . . . . . Hover 37 | . . . 7 . . . . . . . . . . . . . . . . . . . . . . . 5 4 6 4 6 5 Flight 10 | . . . . 2 . . . . 1 . 1 . . . . . . . 2 . . . . 1 . 3 . . . . . . Utility 354 | 2 . 28 6 13 5 3 1 2 3 . 15 9 6 9 21 15 5 2 5 1 33 9 7 4 11 22 17 12 16 44 9 19 Device 260 | 1 . 20 1 6 5 3 1 2 2 . 12 8 5 5 14 9 4 1 2 1 26 8 5 . 10 15 9 10 14 41 6 14 Storage 8 | 1 . . 1 . . . . . . . . . . . 1 1 . . . . . . . 1 . . . 1 1 . . 1 Processor 12 | . . . 1 2 . . . . . . 1 . . . . 1 . 1 1 . 1 . . . . . . . 1 . 1 2 Hackware 20 | . . . . 3 . . . . 1 . 2 1 . 3 . 2 . . . . 3 . . . . 1 1 1 . . . 2 Protection 48 | . . 8 3 2 . . . . . . . . 1 1 6 2 1 . 2 . 3 1 2 3 1 6 6 . . . . . Artifact 6 | . . . . . . . . . . . . . . . . . . . . . . . . . . . 1 . . 3 2 . Weapon 112 | 2 . 12 22 3 2 2 2 3 . 3 . 3 2 . 2 2 2 3 4 . 2 . 2 . . 1 1 2 13 4 3 15 Energy Gun 8 | . . 1 2 . . . . . . . . . 1 . 1 . 1 1 . . . . . . . . . . 1 . . . Energy Cannon 7 | . . 3 2 . . . . . . . . . . . . . . . . . . . . . . . . . 2 . . . Ballistic Gun 28 | 2 . 4 14 2 . 1 1 . . . . . . . . . . . . . . . . . . . . . 1 . . 3 Ballistic Cannon . | . . . . . . . . . . . . . . . . . . . . . . . . . . . . . . . . . Launcher 27 | . . 4 4 . 1 . 1 . . 2 . 2 . . . . 1 . 1 . 1 . 1 . . . . . 2 2 2 3 Special Weapon 4 | . . . . . . . . . . . . . . . . . . . . . . . . . . . . 1 . 1 . 2 Impact Weapon 1 | . . . . 1 . . . . . . . . . . . . . . . . . . . . . . . . . . . . Slashing Weapon 29 | . . . . . 1 1 . 3 . 1 . 1 1 . 1 2 . 2 2 . 1 . 1 . . 1 1 1 7 1 . 1 Piercing Weapon 8 | . . . . . . . . . . . . . . . . . . . 1 . . . . . . . . . . . 1 6 Special Melee Weapon . | . . . . . . . . . . . . . . . . . . . . . . . . . . . . . . . . . Unidentified Prototypes 45 | . . . 5 . . . . . . . . . 2 1 2 . . . 6 . 2 . . 3 . . 4 2 8 6 . 4 Corrupted Parts 1 | . . . . . . . . 1 . . . . . . . . . . . . . . . . . . . . . . . . System Corruption 1 | . . . . . . . . 1 . . . . . . . . . . . . . . . . . . . . . . . . Parts Lost 21 | . . 2 . . . . . . . . . . . . 2 . . . . . . 1 . . . . 3 1 . 3 5 4 Power 3 | . . 1 . . . . . . . . . . . . . . . . . . . 1 . . . . . . . . 1 . Propulsion 8 | . . . . . . . . . . . . . . . . . . . . . . . . . . . 1 1 . 2 2 2 Utility 9 | . . . . . . . . . . . . . . . 2 . . . . . . . . . . . 2 . . 1 2 2 Weapon 1 | . . 1 . . . . . . . . . . . . . . . . . . . . . . . . . . . . . . Highest Loss Streak 2 | . . 1 . . . . . . . . . . . . 1 . . . . . . 1 . . . . 1 1 . 1 2 2 To Critical Strikes . | . . . . . . . . . . . . . . . . . . . . . . . . . . . . . . . . . Average Slot Usage (%) 84 | . 100 95 90 77 80 77 75 79 69 77 76 76 76 76 75 76 76 77 76 77 79 79 77 79 78 80 82 94 95 92 93 90 Engine 4 | . 14 13 4 4 6 4 . . 1 5 5 5 5 5 5 5 5 5 4 . . . 2 5 5 . . . . . . . Core 2 | . . . 4 1 . 1 6 6 5 5 4 5 5 5 5 5 5 5 5 5 5 4 . . . . . . . . . . Reactor 3 | . . . . . . . . . . . . . . . . . . . . 5 5 5 5 5 5 8 8 8 8 7 10 10 Treads 4 | . 28 28 9 . . . . . . . . . . . . . . . . . . . . . . . . . . . . . Hover 7 | . . . 25 9 . . . . . . . . . . . . . . . . . . . . . . 3 31 33 32 32 29 Flight 9 | . . . . 8 12 12 12 12 12 16 16 16 16 16 17 16 16 16 15 16 15 15 15 14 15 17 16 1 . . . . Device 9 | . 14 18 4 3 6 6 6 6 5 5 4 10 9 5 3 6 10 11 8 5 5 4 4 . 7 11 11 12 10 7 10 15 Storage 4 | . 14 . 5 6 6 6 6 6 5 5 5 5 5 5 5 5 5 5 5 5 5 5 5 5 5 4 4 4 4 3 3 2 Processor 9 | . . . 6 16 18 18 18 18 14 11 11 5 5 5 5 5 5 6 12 16 15 15 15 15 15 12 9 8 10 12 11 13 Hackware 15 | . . . . 9 12 12 12 12 12 16 16 16 16 21 21 21 22 20 16 16 23 25 25 21 20 18 21 21 21 20 15 8 Protection 2 | . . 4 6 1 6 6 6 6 5 5 5 5 5 5 2 3 . . . . . . . 8 1 . . . . . . . Ballistic Gun 3 | . 28 9 12 9 6 1 . 4 . . . . . . . . . . . . . . . . . . . . . . . . Slashing Weapon 3 | . . . . . 5 6 6 5 5 4 5 4 5 5 4 4 4 4 4 5 4 5 4 5 5 4 4 4 3 3 3 2 Naked Turns . | . . . . . . . . . . . . . . . . . . . . . . . . . . . . . . . . . Heaviest Build 121 | 15 15 35 36 31 33 28 34 30 33 33 36 44 44 36 35 36 43 29 38 38 38 38 34 35 38 46 45 67 79 92 101 121 Greatest Support 117 | 40 40 40 60 40 30 30 30 30 36 36 36 36 36 36 36 36 36 36 38 38 38 38 38 38 38 46 49 87 105 113 113 117 Greatest Overweight (x) 3 | 1 . . 1 . 1 . 1 . . . . 1 1 . . . 1 . . . . . . 1 . . 3 . 1 . 1 1 Average Overweight (x) . | . . . . . . . . . . . . . . . . . . . . . . . . . . . . . . . . . Largest Inventory Capacity 15 | 8 8 8 10 10 10 10 10 10 10 10 10 10 10 10 10 10 10 10 10 10 10 10 10 10 10 10 10 15 15 15 15 15 Average Capacity 10 | 7 8 5 7 10 10 10 10 10 10 10 10 10 10 10 10 10 10 10 10 10 10 10 10 10 10 10 10 10 15 15 15 13 Most Carried 15 | 4 6 7 10 10 10 10 10 10 10 10 10 10 10 10 10 10 10 10 10 10 10 10 10 10 10 10 10 14 15 15 15 15 Average Carried 9 | 2 5 5 7 9 10 9 9 9 9 9 9 9 9 9 9 9 9 9 9 10 9 10 9 10 9 9 9 10 14 14 14 13 Final Capacity 15 | 8 8 5 10 10 10 10 10 10 10 10 10 10 10 10 10 10 10 10 10 10 10 10 10 10 10 10 10 15 15 15 15 5 Final Carried 15 | 4 6 5 10 10 10 10 10 10 10 10 10 10 10 10 10 10 10 10 10 10 10 10 10 10 10 10 10 14 15 14 15 3 Class Distribution -------------------- 22% | Hacker-Scout 14% | Wizard-Ninja 14% | Hacker-Mutant 12% | Mutant 9% | Wizard-Scout 7% | Subdweller-Mutant 4% | Hacker-Ninja 3% | Wizard-Sprinter Dominant Class ---------------- Mutant | -10/Materials Subdweller-Mutant | -10/Subcaves Mutant | -8/Materials Mutant | -7/Factory Hacker-Scout | -7/Lower Caves Hacker-Scout | -7/Lower Caves Hacker-Scout | -7/Data Miner Hacker-Scout | -6/Proximity Caves Hacker-Scout | -6/Factory Hacker-Scout | -6/Waste Hacker-Scout | -6/Factory Hacker-Scout | -6/Extension Hacker-Mutant | -6/Cetus Hacker-Mutant | -6/Archives Hacker-Mutant | -6/Hub_04(d) Hacker-Mutant | -5/Factory Hacker-Scout | -5/Upper Caves Hacker-Scout | -5/Upper Caves Hacker-Scout | -5/Warlord Hacker-Scout | -4/Proximity Caves Wizard-Scout | -4/Factory Wizard-Scout | -4/Upper Caves Wizard-Scout | -4/Upper Caves Hacker-Sprinter | -4/Zhirov Hacker-Sprinter | -3/Proximity Caves Hacker-Ninja | -3/Research Wizard-Ninja | -3/Quarantine Wizard-Ninja | -2/Research Wizard-Ninja | -2/Testing Wizard-Ninja | -2/Section 7 Hacker-Ninja | -1/Access Scavenger-Sprinter | -1/Command Resources | -11 -10 -10 -8 -7 -7 -7 -7 -6 -6 -6 -6 -6 -6 -6 -6 -5 -5 -5 -5 -4 -4 -4 -4 -4 -3 -3 -3 -2 -2 -2 -1 -1 ----------- Run | Yrd Mat Sub Mat Fac Low Low Dat Pro Fac Was Fac Ext Cet Arc Hub Fac Upp Upp War Pro Fac Upp Upp Zhi Pro Res Qua Res Tes Sec Acc Com Matter Collected 8842 | 336 . 844 1114 331 173 70 . 70 70 134 137 296 85 90 230 73 167 41 189 . 320 135 50 160 80 326 349 210 404 801 527 1030 Remotely . | . . . . . . . . . . . . . . . . . . . . . . . . . . . . . . . . . Salvage Created 13158 | 158 . 579 1377 380 133 . . 54 132 397 193 372 . 105 935 73 134 . . . 529 141 214 358 70 314 609 442 1031 1267 1017 2144 Parts 668 | 12 . 39 87 23 6 . . 3 7 3 11 39 . 12 53 4 5 . . . 33 2 11 3 2 19 43 22 47 57 44 81 Haulers Intercepted 12 | . . . 6 1 . . . . . . 1 . . . . . . . . . 1 . . . . . . 1 2 . . . Recyclers Shooed 2 | . . . 2 . . . . . . . . . . . . . . . . . . . . . . . . . . . . . Parts Field Recycled . | . . . . . . . . . . . . . . . . . . . . . . . . . . . . . . . . . Retrieved Matter . | . . . . . . . . . . . . . . . . . . . . . . . . . . . . . . . . . Parts Self-Destructed 36 | . . 9 . . 5 4 . . . . . . . . . . 1 . . . . . 3 1 13 . . . . . . . Prevented 8 | . . . . . 3 2 . 3 . . . . . . . . . . . . . . . . . . . . . . . . Kills | -11 -10 -10 -8 -7 -7 -7 -7 -6 -6 -6 -6 -6 -6 -6 -6 -5 -5 -5 -5 -4 -4 -4 -4 -4 -3 -3 -3 -2 -2 -2 -1 -1 ------- Run | Yrd Mat Sub Mat Fac Low Low Dat Pro Fac Was Fac Ext Cet Arc Hub Fac Upp Upp War Pro Fac Upp Upp Zhi Pro Res Qua Res Tes Sec Acc Com Combat Hostiles Destroyed 147 | . . 19 24 6 1 . . . 2 2 1 5 . . 14 . . . . . 5 1 4 . 1 2 7 4 3 19 12 15 Melee 68 | . . . . 3 1 . . . 2 . 1 5 . . 8 . . . . . 2 1 . . 1 2 7 4 2 12 7 10 Guns 22 | . . 6 12 2 . . . . . . . . . . . . . . . . . . . . . . . . 1 . . 1 Cannons 7 | . . 4 3 . . . . . . . . . . . . . . . . . . . . . . . . . . . . . AOE 45 | . . 9 7 1 . . . . . 2 . . . . 3 . . . . . 3 . 4 . . . . . . 7 5 4 Classes Destroyed 26 | 2 . 3 8 1 2 . . . . 1 . . . . 3 . . . . . 2 . . . . . . . 2 1 . 1 Worker 22 | . . . 1 1 . . . . 1 . 1 3 . . 3 . . . . . 1 . . . . . . 1 2 1 3 4 Builder 6 | . . . . 1 . . . . . . . 1 . . . . . . . . 2 . . . . . . . 1 . 1 . Tunneler 7 | 4 . . 1 2 . . . . . . . . . . . . . . . . . . . . . . . . . . . . Hauler 12 | . . . 6 1 . . . . . . 1 . . . . . . . . . 1 . . . . . . 1 2 . . . Recycler 7 | 1 . . 2 . . . . . . . . . . . . . . . . . . . . . . . . . 1 1 1 1 Minesweeper 2 | . . . . . 2 . . . . . . . . . . . . . . . . . . . . . . . . . . . Mechanic 2 | . . . . . . . . . . . . . . . . . . . . . . . . . . . . . . 1 1 . Operator 11 | . . . 1 2 . . . . . . . 1 . 3 1 . . . . . . . . . . 1 1 . . . 1 . Turret 2 | . . 2 . . . . . . . . . . . . . . . . . . . . . . . . . . . . . . Watcher 30 | . . . 3 . . . . . 1 . 1 1 . . 1 2 . . . . 4 . . . . 4 3 . 3 2 4 1 Swarmer 40 | . . 5 9 3 . . . . . . . 1 . . . . . . . . . . 4 . . . . 1 1 8 4 4 Cutter 2 | . . . . . . . . . . . . . . . 1 . . . . . . . . . . . . . . . 1 . Saboteur 1 | . . . . . . . . . . . . . . . . . . . . . 1 . . . . . . . . . . . Grunt 28 | . . . 7 2 1 . . . . . 1 1 . . 4 . . . . . 1 . . . 1 1 . . 1 3 5 . Brawler 3 | . . . 1 . . . . . . . . . . . 1 . . . . . . . . . . . . . . 1 . . Protector 3 | . . . . . . . . . . . . . . . 1 . . . . . 1 . . . . . . . . 1 . . Researcher 7 | . . . . . . . . . . . . . . . . . . . . . . . . . . . . . 4 3 . . Sentry 22 | . . . 5 1 . . . . . . . 3 . . 4 . . . . . . 1 . . . . . 3 . 5 . . Hunter 15 | . . . 2 . . . . 1 2 . . . . . 2 . . . . . 1 . . . . . . . . . 2 5 Programmer 11 | . . . . . . . . . . . . . . . . . . . . . 1 . . . . 1 7 . . . . 2 Heavy 2 | . . . . . . . . . . . . . . . 1 . . . . . . . . . . . . . . . . 1 Behemoth 1 | . . . . . . . . . . . . . . . . . . . . . . . . . . . . . . . . 1 Compactor 2 | . . . . . . . . . . 2 . . . . . . . . . . . . . . . . . . . . . . S7 Guard 1 | . . . . . . . . . . . . . . . . . . . . . . . . . . . . . . 1 . . Combat Programmer 1 | . . . . . . . . . . . . . . . . . . . . . . . . . . . . . . . . 1 Protovariant L 1 | . . . . . . . . . . . . . . . . . . . . . . . . . . . . . 1 . . . Subdweller 14 | . . 14 . . . . . . . . . . . . . . . . . . . . . . . . . . . . . . Decomposer 5 | . . . . . . . . . . . . . . . . . . . . . . 1 4 . . . . . . . . . Samaritan 5 | . . . . . 1 . . . . . . . . . . . 3 . . . . 1 . . . . . . . . . . Best Kill Streak 8 | 1 . 6 6 5 2 . . . 2 2 2 4 . 2 6 1 . . . . 7 1 4 . 1 2 2 1 3 5 7 8 Combat Bots Only 5 | . . 4 4 3 1 . . . 2 2 1 2 . . 3 . . . . . 4 1 4 . 1 1 2 1 1 4 4 5 Max Kills in Single Turn 6 | 1 . 3 5 1 1 . . 1 1 2 1 3 . 1 3 1 1 . . . 3 1 3 . 1 1 1 1 1 3 4 6 Gunslinging . | . . . . . . . . . . . . . . . . . . . . . . . . . . . . . . . . . Exploded 4 | . . 3 3 1 . . . . . 2 . . . . 2 . . . . . 2 . 3 . . . . . . 3 3 4 Melee 1 | . . . . 1 1 . . . 1 . 1 1 . . 1 . . . . . 1 1 . . 1 1 1 1 1 1 1 1 Uniques/NPCs Destroyed 1 | . . . . . . . . . . . . . . . . . . . . . . . . . . . . . . . . 1 MAIN.C Shell (-1/Command) Combat | -11 -10 -10 -8 -7 -7 -7 -7 -6 -6 -6 -6 -6 -6 -6 -6 -5 -5 -5 -5 -4 -4 -4 -4 -4 -3 -3 -3 -2 -2 -2 -1 -1 -------- Run | Yrd Mat Sub Mat Fac Low Low Dat Pro Fac Was Fac Ext Cet Arc Hub Fac Upp Upp War Pro Fac Upp Upp Zhi Pro Res Qua Res Tes Sec Acc Com Hostile Shots Fired 924 | . . 88 109 74 12 . . 6 16 1 . 78 1 . 89 1 1 . . . 21 14 35 . 2 32 52 14 16 61 69 132 Missed 371 | . . 31 26 39 7 . . 1 5 . . 30 . . 49 1 . . . . 8 2 19 . 1 14 16 5 6 24 25 62 Damage Taken 11852 | . . 1167 1139 481 57 . . 84 177 46 . 445 96 . 731 . 26 . . . 276 291 236 . 72 387 887 256 189 1068 1279 2462 Core 1386 | . . 202 159 71 . . . 17 . 46 . 11 . . 18 . . . . . . 53 42 . 22 68 96 29 15 186 240 111 Absorbed by Shields 840 | . . . . . . . . . 10 . . 35 . . . . . . . . . . . . . . . . 70 . . 725 Redirected to Shielding 262 | . . . . . . . . . . . . . . . . . . . . . . . . . . 100 162 . . . . . Regen/Repaired (Parts) 3880 | . . . 127 . . . . . . . 19 . . 1 83 209 . . 1 . 65 14 7 21 . 50 322 59 188 866 355 1493 Core Remaining (%) 79 | 100 . 19 71 . . . . 87 . . . . . . 91 . . . . 100 . . . . 89 . 87 . . 82 . 67 Volleys Fired 304 | 11 . 86 109 29 2 . . . . 3 . 4 . . 2 . . 5 . . . . 2 . . . . 1 14 4 4 28 Largest 2 | 2 . 2 2 2 1 . . . . 2 . 2 . . 1 . . 1 . . . . 1 . . . . 1 1 1 1 1 Hottest 240 | 40 . 110 136 50 25 . . . . 79 . 79 . . 240 . . 240 . . . . 45 . . . . 10 40 30 30 45 Shots Fired 466 | 22 . 124 194 50 2 . . . . 6 . 8 . . 2 . . 5 . . . . 2 . . . . 1 14 4 4 28 Gun 350 | 22 . 87 145 50 2 . . . . . . . . . 2 . . 5 . . . . . . . . . . 14 . . 23 Cannon 69 | . . 25 44 . . . . . . . . . . . . . . . . . . . . . . . . . . . . . Launcher 45 | . . 12 5 . . . . . . 6 . 8 . . . . . . . . . . 2 . . . . . . 4 4 4 Special 2 | . . . . . . . . . . . . . . . . . . . . . . . . . . . . 1 . . . 1 Kinetic 332 | 22 . 71 150 50 2 . . . . . . . . . . . . . . . . . . . . . . . 14 . . 23 Thermal 104 | . . 53 44 . . . . . . . . . . . 2 . . 5 . . . . . . . . . . . . . . Explosive 28 | . . . . . . . . . . 6 . 8 . . . . . . . . . . 2 . . . . . . 4 4 4 Electromagnetic . | . . . . . . . . . . . . . . . . . . . . . . . . . . . . . . . . . Robot Hit Streak 64 | 6 . 64 7 5 2 . . . . 6 . 13 . . . . . . . . . . . . . . . 14 18 2 2 8 Robot Miss Streak 5 | 2 . 2 5 4 1 . . . . . . . . . . . . . . . . . . . . . . . 3 1 . 4 Penetration Max 1 | . . . . . . . . . . . . . . . . . . . . . . . . . . . . . . . . 1 Secondary Targets 2 | . . 1 1 . . . . . . . . . . . . . . . . . . . . . . . . . . . . . Max Gunslinging Chain 1 | . . 1 1 . . . . . . . . . . . . . . . . . . . . . . . . . . . . . Shots Hit Robots 631 | 17 . 77 108 39 9 . . 1 7 6 6 27 1 4 14 5 3 . . . 14 9 7 7 3 15 26 19 36 43 39 89 Core Hits 324 | 6 . 32 48 15 2 . . 1 4 6 4 11 . 2 21 2 1 . . . 20 2 9 2 1 5 10 5 14 27 26 48 Critical Kills 3 | . . . 2 . . . . . . . . . . . . . . . . . . . . . . . . . 1 . . . Critical Parts Destroyed 8 | . . 1 2 1 . . . . . . . . . . . . . . . . . . . . . . . . 4 . . . Critical Strikes 52 | . . 2 5 1 . . . . 1 . 1 5 . 1 . . . . . . 3 4 . . . 4 2 3 7 4 7 2 Meltdown 2 | . . . 2 . . . . . . . . . . . . . . . . . . . . . . . . . . . . . Destroy 11 | . . 2 3 . . . . . . . . . . . . . . . . . . . . . . . . . 5 . . 1 Smash 1 | . . . . 1 . . . . . . . . . . . . . . . . . . . . . . . . . . . . Sever 37 | . . . . . . . . . 1 . 1 5 . 1 . . . . . . 3 4 . . . 4 2 3 2 4 7 . Sunder 1 | . . . . . . . . . . . . . . . . . . . . . . . . . . . . . . . . 1 Melee Attacks 634 | . . . . 15 14 3 . 1 11 . 13 23 2 4 22 9 13 . 8 1 36 19 16 7 7 30 55 29 41 73 73 109 Impact 24 | . . . . 15 9 . . . . . . . . . . . . . . . . . . . . . . . . . . . Slashing 560 | . . . . . 5 3 . 1 11 . 13 23 2 4 22 9 13 . 8 1 36 19 16 7 7 30 55 29 41 73 66 66 Piercing . | . . . . . . . . . . . . . . . . . . . . . . . . . . . . . . . . . Entropic 50 | . . . . . . . . . . . . . . . . . . . . . . . . . . . . . . . 7 43 Sneak Attacks 73 | . . . . 1 4 . . 1 1 . 3 5 . 4 2 1 3 . . . 3 2 5 . . 3 3 2 10 9 6 5 Combat Hostiles 10 | . . . . . . . . . . . 1 3 . . . . . . . . . . . . . . 1 . . 2 1 2 Follow-up Attacks 1 | . . . . . . . . . . . . . . . . . . . . . . . . . . . . . . . . 1 Damage Inflicted 47895 | 220 . 2286 2725 1233 545 . . 66 654 1066 472 2063 56 509 2056 380 291 . . . 2189 590 861 761 180 1303 2181 1646 3389 6199 5241 8733 Guns 4070 | 220 . 806 1573 531 19 . . . . . . . . . . . . . . . . . . . . . . . 67 . . 854 Cannons 1092 | . . 551 541 . . . . . . . . . . . . . . . . . . . . . . . . . . . . . Explosions 10997 | . . 929 608 226 . . . . 185 1066 . 644 . . 1080 . . . . . 1198 . 148 . . . . . . 2002 1443 1468 Melee 31733 | . . . . 476 526 . . 66 469 . 472 1419 56 509 976 380 291 . . . 991 590 713 761 180 1303 2181 1646 3322 4197 3798 6411 Ramming 3 | . . . 3 . . . . . . . . . . . . . . . . . . . . . . . . . . . . . Kinetic 5223 | 220 . 1493 2039 531 19 . . . . . . . . . . . . . . . . . . . . . . . 67 . . 854 Thermal 1944 | . . 793 541 114 . . . . 185 . . . . . . . . . . . 311 . . . . . . . . . . . Explosive 7912 | . . . 142 112 . . . . . 1066 . 644 . . . . . . . . 887 . 148 . . . . . . 2002 1443 1468 Electromagnetic 1080 | . . . . . . . . . . . . . . . 1080 . . . . . . . . . . . . . . . . . Impact 687 | . . . . 476 211 . . . . . . . . . . . . . . . . . . . . . . . . . . . Slashing 29789 | . . . . . 315 . . 66 469 . 472 1419 56 509 976 380 291 . . . 991 590 713 761 180 1303 2181 1646 3322 4197 3798 5154 Piercing . | . . . . . . . . . . . . . . . . . . . . . . . . . . . . . . . . . Entropic 1257 | . . . . . . . . . . . . . . . . . . . . . . . . . . . . . . . . 1257 Highest Corruption 18 | . . . . . . . . 1 . 6 6 6 1 1 1 . . . . . . . . . . 1 18 . . . . 8 Average Corruption 5 | . . . . . . . . 1 . 6 6 3 1 1 1 . . . . . . . . . . 1 11 . . . . 4 Corruption Purged 6 | . . . . . . . . . . . . 5 . 1 . . . . . . . . . . . . . . . . . . Corruption Blocked 52 | . . . . . . . . . . . . . . . . . . . . . . . . . . . . 15 . . . 37 Effects 88 | . . . . . . . . 1 . 2 14 14 2 . . . . . . . . . . . . 6 41 . . . . 8 Message Errors 25 | . . . . . . . . . . . 5 4 2 . . . . . . . . . . . . 1 11 . . . . 2 Matter Fused 18 | . . . . . . . . . . 1 2 2 . . . . . . . . . . . . . 1 12 . . . . . Heat Flow Errors 9 | . . . . . . . . . . . 3 1 . . . . . . . . . . . . . . 5 . . . . . Energy Discharges 14 | . . . . . . . . 1 . 1 2 1 . . . . . . . . . . . . . 2 5 . . . . 2 Parts Rejected 1 | . . . . . . . . . . . . . . . . . . . . . . . . . . . . . . . . 1 Parts Fused 1 | . . . . . . . . . . . . . . . . . . . . . . . . . . . 1 . . . . . Data Loss (minor) 14 | . . . . . . . . . . . 2 5 . . . . . . . . . . . . . 1 3 . . . . 3 Data Loss (major) 2 | . . . . . . . . . . . . 1 . . . . . . . . . . . . . 1 . . . . . . Alerts 3 | . . . . . . . . . . . . . . . . . . . . . . . . . . . 3 . . . . . Misdirections 1 | . . . . . . . . . . . . . . . . . . . . . . . . . . . 1 . . . . . Overload Shots 4 | . . . . . . . . . . . . . . . 1 . . 3 . . . . . . . . . . . . . . Overflow Damage 5756 | . . 47 64 201 177 . . . 55 . 6 54 6 115 123 141 175 . . . 102 175 194 304 . 281 345 171 575 867 869 709 Projectiles 20 | . . . 20 . . . . . . . . . . . . . . . . . . . . . . . . . . . . . Explosions 690 | . . 47 44 . . . . . . . . 15 . . 28 . . . . . 10 . 15 . . . . . . 76 238 217 Melee 5046 | . . . . 201 177 . . . 55 . 6 39 6 115 95 141 175 . . . 92 175 179 304 . 281 345 171 575 791 631 492 Knockbacks 7 | . . . . 5 2 . . . . . . . . . . . . . . . . . . . . . . . . . . . Impact 7 | . . . . 5 2 . . . . . . . . . . . . . . . . . . . . . . . . . . . Kinetic . | . . . . . . . . . . . . . . . . . . . . . . . . . . . . . . . . . Secondary . | . . . . . . . . . . . . . . . . . . . . . . . . . . . . . . . . . Self-Inflicted Damage 289 | . . 92 . 65 . . . . . . . . . . 104 . . . . . . . . . . . . . . 28 . . Shots 5 | . . 2 . 1 . . . . . . . . . . 1 . . . . . . . . . . . . . . 1 . . Rammed 1 | . . . 1 . . . . . . . . . . . . . . . . . . . . . . . . . . . . . Targets Rammed 1 | . . . 1 . . . . . . . . . . . . . . . . . . . . . . . . . . . . . Kicked . | . . . . . . . . . . . . . . . . . . . . . . . . . . . . . . . . . Crushed . | . . . . . . . . . . . . . . . . . . . . . . . . . . . . . . . . . Highest Temperature 315 | . . 28 315 164 5 . . . . 74 256 255 . . 265 . . 232 160 197 113 201 5 78 . 12 269 116 119 12 206 . Average Temperature 54 | . . 15 60 59 3 . . . . 33 125 88 . . 127 . . 104 49 83 23 65 1 38 . 7 109 51 27 6 69 . Received Heat Transfer 1650 | . . 180 495 168 18 . . . 21 . . 108 9 . 96 . . . . . 51 81 9 . 12 51 . 63 18 135 99 36 Effects 3 | . . . 3 . . . . . . . . . . . . . . . . . . . . . . . . . . . . . Interference 2 | . . . 2 . . . . . . . . . . . . . . . . . . . . . . . . . . . . . Matter Decay 1 | . . . 1 . . . . . . . . . . . . . . . . . . . . . . . . . . . . . Siege Activations . | . . . . . . . . . . . . . . . . . . . . . . . . . . . . . . . . . Robots Corrupted 3 | . . . . . . . . . . . . . . . 3 . . . . . . . . . . . . . . . . . Combat Hostiles 3 | . . . . . . . . . . . . . . . 3 . . . . . . . . . . . . . . . . . Parts Fried 10 | . . . . . 2 . . . . . . . . . 8 . . . . . . . . . . . . . . . . . Impact Corruptions 11 | . . . . 8 3 . . . . . . . . . . . . . . . . . . . . . . . . . . . Robots Melted 2 | . . . 2 . . . . . . . . . . . . . . . . . . . . . . . . . . . . . Combat Hostiles 2 | . . . 2 . . . . . . . . . . . . . . . . . . . . . . . . . . . . . Parts Melted 5 | . . 1 3 . . . . . . . . . . . 1 . . . . . . . . . . . . . . . . . Heat Transferred 2365 | . . 1040 925 50 . . . . 100 . . . . . . . . . . . 250 . . . . . . . . . . . Parts Sabotaged . | . . . . . . . . . . . . . . . . . . . . . . . . . . . . . . . . . Parts Stolen 1 | . . . . . 1 . . . . . . . . . . . . . . . . . . . . . . . . . . . Parts Stripped . | . . . . . . . . . . . . . . . . . . . . . . . . . . . . . . . . . Power Chain Reactions . | . . . . . . . . . . . . . . . . . . . . . . . . . . . . . . . . . Missiles Intercepted . | . . . . . . . . . . . . . . . . . . . . . . . . . . . . . . . . . Alert | -11 -10 -10 -8 -7 -7 -7 -7 -6 -6 -6 -6 -6 -6 -6 -6 -5 -5 -5 -5 -4 -4 -4 -4 -4 -3 -3 -3 -2 -2 -2 -1 -1 ------- Run | Yrd Mat Sub Mat Fac Low Low Dat Pro Fac Was Fac Ext Cet Arc Hub Fac Upp Upp War Pro Fac Upp Upp Zhi Pro Res Qua Res Tes Sec Acc Com Peak Influence 1240 | 25 46 . 743 581 . . . . 379 97 110 545 525 451 1240 707 . . . . 492 . . . . 473 384 122 183 745 556 587 Initial 602 | . 16 . . 253 . . . . . 62 67 51 31 210 35 602 . . . . . . . . . 394 114 . 68 36 28 300 Average 245 | 12 24 . 306 338 . . . . 247 84 80 217 187 275 614 566 . . . . 168 . . . . 290 134 50 80 242 360 441 Maximum Alert Level 4 | . . . 3 2 . . . . 1 . . 2 2 2 4 3 . . . . 2 . . . . 2 1 . . 3 2 2 Low Security (%) 50 | 100 100 . 34 . . . . . 31 100 100 41 78 28 15 2 . . . . 62 . . . . 35 75 100 100 53 9 . Level 1 26 | . . . 37 83 . . . . 68 . . 50 4 37 6 11 . . . . 28 . . . . 27 24 . . 24 53 32 Level 2 19 | . . . 22 16 . . . . . . . 8 16 34 42 57 . . . . 9 . . . . 36 . . . 17 36 67 Level 3 3 | . . . 4 . . . . . . . . . . . 28 28 . . . . . . . . . . . . . 5 . . Level 4 . | . . . . . . . . . . . . . . . 7 . . . . . . . . . . . . . . . . . Level 5 . | . . . . . . . . . . . . . . . . . . . . . . . . . . . . . . . . . High Security . | . . . . . . . . . . . . . . . . . . . . . . . . . . . . . . . . . Max Security . | . . . . . . . . . . . . . . . . . . . . . . . . . . . . . . . . . Squads Dispatched 76 | . 4 . 1 2 . . . . 5 . 4 5 . . 12 5 . . . . 8 . . . . 2 5 3 8 6 3 3 Investigation 37 | . 3 . . 1 . . . . 5 . 3 3 . . 4 5 . . . . 5 . . . . 1 1 1 4 . 1 . Extermination 10 | . . . . . . . . . . . . . . . 1 . . . . . 1 . . . . . 3 . 1 3 . 1 Reinforcement 28 | . 1 . 1 1 . . . . . . 1 2 . . 7 . . . . . 2 . . . . 1 1 2 3 2 2 2 Assault 1 | . . . . . . . . . . . . . . . . . . . . . . . . . . . . . . 1 . . Garrison . | . . . . . . . . . . . . . . . . . . . . . . . . . . . . . . . . . Intercept . | . . . . . . . . . . . . . . . . . . . . . . . . . . . . . . . . . Searches Triggered 1 | . . . . . . . . . . . . . . . . . . . . . . . . . . 1 . . . . . . Construction Impeded 2 | . . . . . . . . . . . . 1 . . . . . . . . 1 . . . . . . . . . . . Haulers Reinforced 4 | . . . . 1 . . . . . . 1 . . . 1 . . . . . . . . . . . . . 1 . . . Active Scanning Responses . | . . . . . . . . . . . . . . . . . . . . . . . . . . . . . . . . . Cargo Convoy Interrupts 1 | . . . . . . . . . . . . . . . . . . . . . 1 . . . . . . . . . . . Stealth | -11 -10 -10 -8 -7 -7 -7 -7 -6 -6 -6 -6 -6 -6 -6 -6 -5 -5 -5 -5 -4 -4 -4 -4 -4 -3 -3 -3 -2 -2 -2 -1 -1 --------- Run | Yrd Mat Sub Mat Fac Low Low Dat Pro Fac Was Fac Ext Cet Arc Hub Fac Upp Upp War Pro Fac Upp Upp Zhi Pro Res Qua Res Tes Sec Acc Com Distress Signals 22 | . . . 3 1 . . . . . . . 1 . . 4 . . . 2 . 1 . . . . 1 3 4 . . . 2 Communications Jammed 39 | . . . . . . . . . . . . . . . . . . . . . . . . . . 1 2 . 2 4 30 . Distress Signals 38 | . . . . . . . . . . . . . . . . . . . . . . . . . . 1 2 . 2 3 30 . Times Spotted 403 | . 1 32 34 16 4 . . 2 6 5 2 27 12 . 36 5 1 1 19 . 23 1 12 . 8 21 19 9 16 35 24 32 Peak Tracking Total 15 | . 1 6 7 4 2 . . 2 2 4 1 5 5 . 10 3 1 1 7 . 15 1 9 . 6 10 4 4 3 5 4 5 Tactical Retreats 37 | . . 1 3 4 2 . . . 1 . . 3 . . 7 . . 1 . . 3 . 1 . 1 1 1 . 1 5 2 . Traps | -11 -10 -10 -8 -7 -7 -7 -7 -6 -6 -6 -6 -6 -6 -6 -6 -5 -5 -5 -5 -4 -4 -4 -4 -4 -3 -3 -3 -2 -2 -2 -1 -1 ------- Run | Yrd Mat Sub Mat Fac Low Low Dat Pro Fac Was Fac Ext Cet Arc Hub Fac Upp Upp War Pro Fac Upp Upp Zhi Pro Res Qua Res Tes Sec Acc Com Traps Triggered 15 | . . 1 2 1 . . . . 4 . 2 2 . . . . . . . . . . . . . . 1 . 1 . . 1 Indirectly . | . . . . . . . . . . . . . . . . . . . . . . . . . . . . . . . . . Trap Hack Attempts . | . . . . . . . . . . . . . . . . . . . . . . . . . . . . . . . . . Triggered . | . . . . . . . . . . . . . . . . . . . . . . . . . . . . . . . . . Disarmed 6 | . . . . . . . . . . . . . . . 6 . . . . . . . . . . . . . . . . . Reprogrammed 37 | . . . . 4 . . . . . . . . . . . . . . . . 14 . . . . 10 5 . 4 . . . Reused 13 | . . . . . 1 . . 1 . . . . 1 . . . . . . . 3 . . . . 2 1 . 4 . . . Traps Extracted 3 | . . . . 2 . . . . . . . . 1 . . . . . . . . . . . . . . . . . . . Installed 6 | . . . . . 2 . . 1 . . . . 3 . . . . . . . . . . . . . . . . . . . Triggered 27 | . . . . . 2 1 . 1 . . . . 1 . . . 1 . 4 1 3 . 2 . . 2 1 . 4 . . 4 Most Traps Carried 4 | . . 1 . 2 4 4 4 4 3 3 3 3 3 1 1 1 1 1 1 . . . . . . . . . . . . . Objects Rigged 20 | . . . . 10 . . . . 3 . . . . . 2 . . . . . 5 . . . . . . . . . . . Exploded 9 | . . . . 3 . . . . 1 . . . . . 2 . . . . . 3 . . . . . . . . . . . Machines | -11 -10 -10 -8 -7 -7 -7 -7 -6 -6 -6 -6 -6 -6 -6 -6 -5 -5 -5 -5 -4 -4 -4 -4 -4 -3 -3 -3 -2 -2 -2 -1 -1 ---------- Run | Yrd Mat Sub Mat Fac Low Low Dat Pro Fac Was Fac Ext Cet Arc Hub Fac Upp Upp War Pro Fac Upp Upp Zhi Pro Res Qua Res Tes Sec Acc Com Machines Disabled 72 | . . 5 5 4 . . . . 2 . . 3 5 2 21 . . 1 . . 7 . . . . . 5 . 5 7 . . Max in Single Turn 11 | . . 4 2 2 . . . . 2 . . . 1 . 11 . . 1 . . 2 . . . . . 1 . 1 1 . . Garrison Access 9 | . . . . . . . . . 1 . 1 . . . 1 . . . . . . . . . . 1 1 1 1 1 1 . Network Hub 2 | . . . . . . . . . . . . . . . 2 . . . . . . . . . . . . . . . . . Machines Repaired . | . . . . . . . . . . . . . . . . . . . . . . . . . . . . . . . . . Machines Dismantled . | . . . . . . . . . . . . . . . . . . . . . . . . . . . . . . . . . Machines Sabotaged . | . . . . . . . . . . . . . . . . . . . . . . . . . . . . . . . . . Overloaded Fab Kills . | . . . . . . . . . . . . . . . . . . . . . . . . . . . . . . . . . Hacking | -11 -10 -10 -8 -7 -7 -7 -7 -6 -6 -6 -6 -6 -6 -6 -6 -5 -5 -5 -5 -4 -4 -4 -4 -4 -3 -3 -3 -2 -2 -2 -1 -1 --------- Run | Yrd Mat Sub Mat Fac Low Low Dat Pro Fac Was Fac Ext Cet Arc Hub Fac Upp Upp War Pro Fac Upp Upp Zhi Pro Res Qua Res Tes Sec Acc Com Machines Accessed 172 | . 1 1 9 12 . 1 4 . 10 . 11 10 1 . 12 10 1 1 5 . 11 . . 5 . 9 13 2 12 15 6 10 Terminals 106 | . . . 6 8 . . . . 6 . 8 10 1 . 10 5 . 1 . . 7 . . . . 2 9 . 7 11 5 10 Fabricators 15 | . . . . 3 . . . . 3 . 1 . . . . 2 . . . . 3 . . . . 1 . 1 1 . . . Repair Stations 7 | . . . 1 . . . . . . . 1 . . . . 1 . . . . 1 . . . . 1 1 . 1 . . . Recycling Units 6 | . 1 . 1 1 . . . . . . . . . . . . . . . . . . . . . 2 . 1 . . . . Scanalyzers 11 | . . . 1 . . . . . . . . . . . . 1 . . . . . . . . . 2 2 . 2 3 . . Garrison Access 10 | . . . . . . . . . 1 . 1 . . . 2 1 . . . . . . . . . 1 1 . 1 1 1 . Total Hacks 794 | . 3 9 21 45 . 1 32 . 34 . 40 38 3 . 78 74 1 3 5 . 80 . . 18 . 45 70 7 55 70 28 34 Successful 485 | . 2 9 13 28 . 1 32 . 22 . 23 19 1 . 39 28 1 3 5 . 54 . . 18 . 28 42 6 35 50 9 17 Failed 308 | . 1 . 8 17 . . . . 12 . 17 19 2 . 39 46 . . . . 26 . . . . 17 27 1 20 20 19 17 Catastrophic 61 | . . . 1 2 . . . . 2 . 1 5 1 . 5 10 . . . . 6 . . . . 3 6 . 3 5 8 3 Database Lockouts 1 | . . . . . . . . . . . . . . . . . . . . . . . . . . . 1 . . . . . Manual 432 | . 1 . 5 26 . . . . 16 . 17 19 1 . 51 49 . . 1 . 53 . . . . 28 42 3 30 42 24 24 Terminals 590 | . . . 14 33 . . . . 24 . 30 38 3 . 71 59 . 3 . . 58 . . . . 28 61 . 45 64 25 34 Fabricators 64 | . . . . 11 . . . . 7 . 7 . . . . 4 . . . . 19 . . . . 5 . 6 5 . . . Repair Stations 18 | . . . 3 . . . . . . . 2 . . . . 3 . . . . 3 . . . . 2 3 . 2 . . . Recycling Units 11 | . 3 . 2 1 . . . . . . . . . . . . . . . . . . . . . 4 . 1 . . . . Scanalyzers 17 | . . . 2 . . . . . . . . . . . . 1 . . . . . . . . . 2 5 . 2 5 . . Garrison Access 28 | . . . . . . . . . 3 . 1 . . . 7 7 . . . . . . . . . 4 1 . 1 1 3 . Terminal Hacks 303 | . . 9 4 14 . 1 32 . 9 . 11 14 1 . 23 17 1 3 5 . 31 . . 18 . 12 26 . 21 35 5 11 Record 34 | . . 8 . . . . 11 . . . . . 1 . . . . 3 4 . . . . 6 . . 1 . . . . . Part Schematic 29 | . . . . 1 . . 11 . . . 1 1 . . . 3 . . . . 5 . . 4 . 1 2 . . . . . Robot Schematic 7 | . . . . . . . 7 . . . . . . . . . . . . . . . . . . . . . . . . . Robot Analysis 17 | . . . . 5 . . . . . . . . . . . 1 . . . . 3 . . 4 . . 2 . . 1 1 . Prototype ID Bank 11 | . . . . . . . 3 . . . . . . . . . . . . . 2 . . 4 . . 2 . . . . . Open Door 6 | . . . . . . 1 . . . . . . . . . . 1 . 1 . . . . . . . . . . 2 . 1 Level Access Points 4 | . . . . . . . . . 1 . 1 . . . . . . . . . 1 . . . . . . . . 1 . . Branch Access Points 9 | . . . . 1 . . . . . . 1 . . . . 2 . . . . 1 . . . . 2 . . 1 . 1 . Emergency Access Points 3 | . . . . . . . . . . . . . . . . . . . . . 1 . . . . . 1 . 1 . . . Machine Index 8 | . . . . . . . . . 1 . 1 . . . 1 . . . . . 1 . . . . 1 . . 1 1 . 1 Terminal Index 5 | . . . . . . . . . . . . . . . . 1 . . . . 1 . . . . . 1 . . 1 1 . Fabricator Index 1 | . . . . . . . . . . . . . . . . . . . . . . . . . . . . . . . 1 . Garrison Index 2 | . . . . . . . . . . . . . . . 1 1 . . . . . . . . . . . . . . . . Alert Level 29 | . . . 1 1 . . . . . . 1 2 . . 3 2 . . . . 3 . . . . 2 5 . 2 5 . 2 Unreport Threat 25 | . . . 1 1 . . . . . . . 4 . . 3 2 . . . . 2 . . . . 1 2 . 2 5 . 2 Locate Traps 34 | . . . . 3 . . . . 4 . 2 1 . . 5 2 . . . . 4 . . . . 2 1 . 5 5 . . Disarm Traps 2 | . . . . . . . . . . . . . . . 2 . . . . . . . . . . . . . . . . . Reprogram Traps 10 | . . . . 1 . . . . . . . . . . . . . . . . 3 . . . . 2 2 . 2 . . . Maintenance Status 3 | . . . 1 . . . . . . . . . . . . . . . . . . . . . . . 1 . . . 1 . Security Status 2 | . . . . . . . . . . . . . . . 1 . . . . . . . . . . . . . . . . 1 Patrol Status 4 | . . . . 1 . . . . . . . . . . . . . . . . 1 . . . . . . . . 1 . 1 Investigation Status 2 | . . . . . . . . . . . . . . . . . . . . . . . . . . . 1 . . 1 . . Reinforcement Status 1 | . . . . . . . . . . . . . . . 1 . . . . . . . . . . . . . . . . . Recall Investigation 12 | . . . . . . . . . 1 . . 2 . . . 1 . . . . 1 . . . . 1 2 . 3 1 . . Recall Extermination 6 | . . . . . . . . . . . . . . . 1 . . . . . . . . . . . 1 . 1 3 . . Recall Reinforcements 5 | . . . . . . . . . . . 1 2 . . 1 . . . . . . . . . . . . . 1 . . . Hauler Manifests 9 | . . . 1 . . . . . 1 . 1 1 . . 1 2 . . . . . . . . . . . . 1 1 . . Registered Prototypes 1 | . . . . . . . . . 1 . . . . . . . . . . . . . . . . . . . . . . . Zone Layout 19 | . . . . . . . . . . . 2 1 . . 3 . . . . . 2 . . . . . 2 . 1 7 . 1 Derelict Proto ID Bank 1 | . . 1 . . . . . . . . . . . . . . . . . . . . . . . . . . . . . . Disengage Seal 2 | . . . . . . . . . . . . . . . . . . . . . . . . . . . . . . . . 2 Fabricator Hacks 25 | . . . . 3 . . . . 4 . 4 . . . . 3 . . . . 5 . . . . 2 . 2 2 . . . Load Schematic 14 | . . . . 2 . . . . 3 . 2 . . . . 2 . . . . 2 . . . . 1 . 1 1 . . . Build 11 | . . . . 1 . . . . 1 . 2 . . . . 1 . . . . 3 . . . . 1 . 1 1 . . . Repair Station Hacks 15 | . . . 2 . . . . . . . 2 . . . . 2 . . . . 3 . . . . 2 2 . 2 . . . Scan Component 7 | . . . 1 . . . . . . . 1 . . . . 1 . . . . 1 . . . . 1 1 . 1 . . . Repair 7 | . . . 1 . . . . . . . 1 . . . . 1 . . . . 1 . . . . 1 1 . 1 . . . Refit 1 | . . . . . . . . . . . . . . . . . . . . . 1 . . . . . . . . . . . Recycling Unit Hacks 7 | . 1 . 1 1 . . . . . . . . . . . . . . . . . . . . . 3 . 1 . . . . Retrieve Matter 1 | . . . . . . . . . . . . . . . . . . . . . . . . . . 1 . . . . . . Retrieve Components 6 | . 1 . 1 1 . . . . . . . . . . . . . . . . . . . . . 2 . 1 . . . . Scanalyzer 15 | . . . 2 . . . . . . . . . . . . 1 . . . . . . . . . 2 4 . 2 4 . . Insert Component 13 | . . . 1 . . . . . . . . . . . . 1 . . . . . . . . . 2 4 . 2 3 . . Analyze 2 | . . . 1 . . . . . . . . . . . . . . . . . . . . . . . . . . 1 . . Garrison Access Hacks 7 | . . . . . . . . . . . 1 . . . 1 . . . . . . . . . . 1 1 . 1 1 1 . Seal Access 7 | . . . . . . . . . . . 1 . . . 1 . . . . . . . . . . 1 1 . 1 1 1 . Unauthorized Hacks 113 | . 1 . 4 10 . . . . 9 . 5 5 . . 15 5 . . . . 15 . . . . 6 9 3 7 10 3 6 Terminals 83 | . . . 4 7 . . . . 6 . 3 5 . . 11 4 . . . . 8 . . . . 3 9 . 4 10 3 6 Track 15 | . . . . . . . . . 1 . 1 1 . . 2 . . . . . 1 . . . . . 1 . . 5 . 3 Assimilate 15 | . . . . 2 . . . . 2 . . . . . 1 1 . . . . 1 . . . . 2 3 . 2 . . 1 Botnet 33 | . . . 1 2 . . . . 2 . 1 3 . . 3 2 . . . . 3 . . . . 1 4 . 2 4 3 2 Detonate 7 | . . . . 2 . . . . 1 . . . . . 3 . . . . . 1 . . . . . . . . . . . Disrupt 5 | . . . 1 . . . . . . . . 1 . . 2 . . . . . 1 . . . . . . . . . . . Operators 8 | . . . 2 1 . . . . . . 1 . . . . 1 . . . . 1 . . . . . 1 . . 1 . . Fabricators 24 | . . . . 3 . . . . 2 . 2 . . . . 1 . . . . 7 . . . . 3 . 3 3 . . . Report 1 | . . . . . . . . . . . . . . . . . . . . . 1 . . . . . . . . . . . Prioritize 7 | . . . . 1 . . . . . . 1 . . . . . . . . . 2 . . . . 1 . 1 1 . . . Liberate 6 | . . . . . . . . . . . . . . . . . . . . . 3 . . . . 1 . 1 1 . . . Haulers 5 | . . . . 1 . . . . . . . . . . . . . . . . 1 . . . . 1 . 1 1 . . . Recompile 5 | . . . . 1 . . . . 2 . 1 . . . . 1 . . . . . . . . . . . . . . . . Repair Stations . | . . . . . . . . . . . . . . . . . . . . . . . . . . . . . . . . . Recycling Units 1 | . 1 . . . . . . . . . . . . . . . . . . . . . . . . . . . . . . . Tunnel 1 | . 1 . . . . . . . . . . . . . . . . . . . . . . . . . . . . . . . Scanalyzers . | . . . . . . . . . . . . . . . . . . . . . . . . . . . . . . . . . Garrison Access 5 | . . . . . . . . . 1 . . . . . 4 . . . . . . . . . . . . . . . . . Broadcast 1 | . . . . . . . . . . . . . . . 1 . . . . . . . . . . . . . . . . . Reprogram 1 | . . . . . . . . . . . . . . . 1 . . . . . . . . . . . . . . . . . Intercept 1 | . . . . . . . . . . . . . . . 1 . . . . . . . . . . . . . . . . . Watchers 1 | . . . . . . . . . . . . . . . 1 . . . . . . . . . . . . . . . . . Jam 1 | . . . . . . . . . 1 . . . . . . . . . . . . . . . . . . . . . . . Data Cores Recovered 3 | . . . . 2 . . . . . . . . . . . . . . . . . . . . . . . . . . 1 . Used . | . . . . . . . . . . . . . . . . . . . . . . . . . . . . . . . . . Hacking Detections 116 | . . . 8 10 . . . . 9 . 9 9 1 . 11 8 . . . . 8 . . . . 7 8 1 8 7 4 8 Full Trace Events 22 | . . . . . . . . . 2 . 2 2 . . 4 4 . . . . 3 . . . . 1 1 1 1 . 1 . Feedback Events 3 | . . . . . . . . . . . . . . . 1 . . . . . . . . . . . 1 . . . 1 . Hackware Fried 3 | . . . . . . . . . . . . . . . 1 . . . . . . . . . . . 1 . . . 1 . Feedback Blocked . | . . . . . . . . . . . . . . . . . . . . . . . . . . . . . . . . . Robot Schematics Acquired 11 | . . . . . . . 7 . . . . . . . . . . . . . . . . . . . . . 1 3 . . Robots Built . | . . . . . . . . . . . . . . . . . . . . . . . . . . . . . . . . . Authchips . | . . . . . . . . . . . . . . . . . . . . . . . . . . . . . . . . . Time . | . . . . . . . . . . . . . . . . . . . . . . . . . . . . . . . . . Total Robot Build Rating . | . . . . . . . . . . . . . . . . . . . . . . . . . . . . . . . . . Part Schematics Acquired 44 | . . . 1 1 . . 11 . . . 1 1 . . . 3 . . . . 5 . . 4 . 1 1 . 10 5 . . Parts Built 13 | . . . . 1 . . . . 1 . 2 . . . . 1 . . . . 3 . . . . 1 . 2 2 . . . Authchips 3 | . . . . 1 . . . . . . 2 . . . . . . . . . . . . . . . . . . . . . Time 693 | . . . . 47 . . . . 76 . 118 . . . . 106 . . . . 197 . . . . 46 . 34 69 . . . Total Part Build Rating 91 | . . . . 5 . . . . 5 . 11 . . . . 6 . . . . 21 . . . . 7 . 18 18 . . . Parts Repaired 7 | . . . 1 . . . . . . . 1 . . . . 1 . . . . 1 . . . . 1 1 . 1 . . . Time 172 | . . . 16 . . . . . . . 25 . . . . 14 . . . . 35 . . . . 36 26 . 20 . . . Parts Recycled . | . . . . . . . . . . . . . . . . . . . . . . . . . . . . . . . . . Recycled Matter . | . . . . . . . . . . . . . . . . . . . . . . . . . . . . . . . . . Retrieved Matter . | . . . . . . . . . . . . . . . . . . . . . . . . . . . . . . . . . Retrieved Components 28 | . 3 . 9 5 . . . . . . . . . . . . . . . . . . . . . 10 . 1 . . . . Parts Scanalyzed 2 | . . . 1 . . . . . . . . . . . . . . . . . . . . . . . . . . 1 . . Part Schematics Acquired 2 | . . . 1 . . . . . . . . . . . . . . . . . . . . . . . . . . 1 . . Parts Damaged . | . . . . . . . . . . . . . . . . . . . . . . . . . . . . . . . . . Bothacking | -11 -10 -10 -8 -7 -7 -7 -7 -6 -6 -6 -6 -6 -6 -6 -6 -5 -5 -5 -5 -4 -4 -4 -4 -4 -3 -3 -3 -2 -2 -2 -1 -1 ------------ Run | Yrd Mat Sub Mat Fac Low Low Dat Pro Fac Was Fac Ext Cet Arc Hub Fac Upp Upp War Pro Fac Upp Upp Zhi Pro Res Qua Res Tes Sec Acc Com Used RIF Installer . | . . . . . . . . . . . . . . . . . . . . . . . . . . . . . . . . . Robots Hacked 2 | . . . . . . . . . . . . . . . . . . . . . . . . . . . . 1 . . . 1 Non-combat 1 | . . . . . . . . . . . . . . . . . . . . . . . . . . . . 1 . . . . Combat . | . . . . . . . . . . . . . . . . . . . . . . . . . . . . . . . . . Robot Hacks Applied 1 | . . . . . . . . . . . . . . . . . . . . . . . . . . . . 1 . . . . parse_system 1 | . . . . . . . . . . . . . . . . . . . . . . . . . . . . 1 . . . . Manual 1 | . . . . . . . . . . . . . . . . . . . . . . . . . . . . . . . . 1 Relay Couplers Released 3 | . . . . . . . . . . . . . . . . . . . . . . . . . . . . 3 . . . . Machine Destruction 3 | . . . . . . . . . . . . . . . . . . . . . . . . . . . . 3 . . . . Fabnet Peak Effective % . | . . . . . . . . . . . . . . . . . . . . . . . . . . . . . . . . . Robots Rewired 18 | . . . . . . . . 1 . . . 12 . . . . . . 5 . . . . . . . . . . . . . Allies Hacked 1 | . . . . . . . . . . . . . . . . . . . . . 1 . . . . . . . . . . . Hacks Repelled . | . . . . . . . . . . . . . . . . . . . . . . . . . . . . . . . . . Allies | -11 -10 -10 -8 -7 -7 -7 -7 -6 -6 -6 -6 -6 -6 -6 -6 -5 -5 -5 -5 -4 -4 -4 -4 -4 -3 -3 -3 -2 -2 -2 -1 -1 -------- Run | Yrd Mat Sub Mat Fac Low Low Dat Pro Fac Was Fac Ext Cet Arc Hub Fac Upp Upp War Pro Fac Upp Upp Zhi Pro Res Qua Res Tes Sec Acc Com Total Allies 51 | . . . . . . . . 1 2 1 . 23 5 . 1 1 . . 5 . 5 . . . . 2 3 . 1 . . 1 Largest Group 13 | . . . . . . . . 1 2 1 . 13 12 11 10 1 . . 5 . 4 . . . . 1 1 . 1 . . 1 Highest-Rated Group 791 | . . . . . . . . 41 36 31 . 535 791 791 648 26 . . 253 . 210 . . . . 26 45 . 45 . . 45 Highest-Rated Ally 159 | . . . . . . . . 41 26 31 . 159 143 143 96 26 . . 65 . 56 . . . . 26 45 . 45 . . 45 Total Orders 31 | . . . . . . . . . . . . 5 5 1 . . 5 . 2 . . . . . 8 . 2 3 . . . . STAY 6 | . . . . . . . . . . . . . 1 . . . . . 2 . . . . . 1 . 2 . . . . . FOLLOW 1 | . . . . . . . . . . . . 1 . . . . . . . . . . . . . . . . . . . . EXPLORE 4 | . . . . . . . . . . . . 1 1 . . . 2 . . . . . . . . . . . . . . . RETURN 20 | . . . . . . . . . . . . 3 3 1 . . 3 . . . . . . . 7 . . 3 . . . . Ally Attacks 485 | . . . . . . . . . . 12 . 133 94 20 106 . 12 . 11 . 46 . . . 41 . . 10 . . . . Total Damage 12839 | . . . . . . . . . . 186 . 3486 2306 725 2663 . 240 . 458 . 1730 . . . 903 . . 142 . . . . Kills 87 | . . . . . . . . . . . . 23 16 6 19 . 1 . 3 . 13 . . . 5 . . 1 . . . . Allies Corrupted 3 | . . . . . . . . . . . . . . . . . . . 3 . . . . . . . . . . . . . Allies Melted 1 | . . . . . . . . . . . . . . . . . . . . . . . . . . . . 1 . . . . Intel | -11 -10 -10 -8 -7 -7 -7 -7 -6 -6 -6 -6 -6 -6 -6 -6 -5 -5 -5 -5 -4 -4 -4 -4 -4 -3 -3 -3 -2 -2 -2 -1 -1 ------- Run | Yrd Mat Sub Mat Fac Low Low Dat Pro Fac Was Fac Ext Cet Arc Hub Fac Upp Upp War Pro Fac Upp Upp Zhi Pro Res Qua Res Tes Sec Acc Com Robot Analysis Total 16 | . . . . 5 . . . . . . . . . . . 1 . . . . 3 . . 4 . . 2 . . . 1 . Derelict Logs Recovered 12 | . . . . . 2 2 . 1 . . . . . . . . 2 1 . 2 . 1 1 . . . . . . . . . Drone Launches 26 | . . . . . . . . . . . . 5 3 2 . . 3 . . . . . . . 10 . . 3 . . . . Drone Recoveries 26 | . . . . . . . . . . . . 5 3 2 . . 3 . . . . . . . 10 . . 3 . . . . Decoded 0b10 Intel 25 | . . . . . . . . . . . . . . . . . . . . . 19 . . . . 6 . . . . . . Traps 16 | . . . . . . . . . . . . . . . . . . . . . 16 . . . . . . . . . . . Emergency Access 9 | . . . . . . . . . . . . . . . . . . . . . 3 . . . . 6 . . . . . . Exploration | -11 -10 -10 -8 -7 -7 -7 -7 -6 -6 -6 -6 -6 -6 -6 -6 -5 -5 -5 -5 -4 -4 -4 -4 -4 -3 -3 -3 -2 -2 -2 -1 -1 ------------- Run | Yrd Mat Sub Mat Fac Low Low Dat Pro Fac Was Fac Ext Cet Arc Hub Fac Upp Upp War Pro Fac Upp Upp Zhi Pro Res Qua Res Tes Sec Acc Com Turns Passed 20894 | 234 739 2248 895 603 747 276 36 294 510 72 619 806 306 1114 639 817 356 326 552 104 1108 875 297 84 278 642 1275 622 891 1214 621 694 Spaces Moved 25474 | 122 66 1128 864 947 1225 528 84 286 959 119 937 722 228 191 1040 1434 775 456 950 273 1586 678 584 174 409 1028 1769 962 1207 1605 1052 1086 Core 12 | 12 . . . . . . . . . . . . . . . . . . . . . . . . . . . . . . . . Treads 1441 | 110 66 1128 137 . . . . . . . . . . . . . . . . . . . . . . . . . . . . . Legs . | . . . . . . . . . . . . . . . . . . . . . . . . . . . . . . . . . Wheels . | . . . . . . . . . . . . . . . . . . . . . . . . . . . . . . . . . Hover 7020 | . . . 727 217 . . . . . . . . . . . . . . . . . . . . . . 187 962 1207 1594 1040 1086 Flight 16978 | . . . . 730 1225 528 84 286 959 119 937 722 228 191 1040 1434 775 456 950 273 1586 678 584 174 409 1028 1582 . . . . . Fastest Speed 23 | 50 160 160 36 36 37 37 37 37 34 34 34 34 34 34 34 34 34 34 27 27 27 27 27 27 27 23 23 30 33 32 23 26 Average Speed 39 | 150 160 160 55 37 37 37 37 37 36 34 34 34 36 34 34 34 34 34 30 27 27 27 27 27 27 25 28 39 36 35 27 31 Slowest Speed 240 | 160 160 160 160 40 97 37 97 37 37 34 34 90 90 34 34 34 90 34 34 27 27 27 27 87 27 27 240 48 121 39 118 120 Overloaded Moves . | . . . . . . . . . . . . . . . . . . . . . . . . . . . . . . . . . Propulsion Burnouts . | . . . . . . . . . . . . . . . . . . . . . . . . . . . . . . . . . Robots Hopped 76 | . . . . 10 . 2 . 1 1 . 6 13 . . 16 7 . . . . 7 . . . . 7 6 . . . . . Cave-ins Triggered . | . . . . . . . . . . . . . . . . . . . . . . . . . . . . . . . . . Spacefolds 8 | . . . . . . . . . . . . . . . . . . . . . . . . . . . . . . 4 4 . Exploration Rate (%) 58 | 9 12 73 71 30 94 75 69 41 20 81 24 82 73 88 81 28 91 58 95 53 43 84 78 61 47 26 95 33 90 71 27 34 Regions Visited 32 Branch Regions 21 Pre-discovered Areas 8 | . 1 1 . . . . 1 . . . . . . . . . 2 . . . . . . 3 . . . . . . . . Known Exits Taken 27 | . . . 1 1 1 1 1 1 . . 1 1 1 1 1 1 1 1 1 1 1 1 1 1 1 1 1 1 1 1 1 . Unknown Exits Taken 3 | 1 1 1 . . . . . . . . . . . . . . . . . . . . . . . . . . . . . . Scrap Searched 32 | . . 10 . . 2 5 . 3 . . . . . . . . 3 2 . . . 4 . . 3 . . . . . . . Spaces Dug 361 | . . . 32 3 . 2 . . 4 . 6 1 . . 170 3 10 1 4 1 14 6 9 . 3 9 8 6 2 34 10 23 Terrain Destroyed 878 | . . 133 71 8 . 2 . . 18 54 6 18 . . 332 3 10 2 4 1 49 6 34 . 3 9 8 6 2 46 28 25 Melee 111 | . . . . 3 . 2 . . 4 . 6 1 . . 2 3 10 . 4 1 14 6 9 . 3 9 8 6 2 4 10 4 Projectile 7 | . . . 3 . . . . . . . . . . . 2 . . 2 . . . . . . . . . . . . . . AOE 760 | . . 133 68 5 . . . . 14 54 . 17 . . 328 . . . . . 35 . 25 . . . . . . 42 18 21 Terrain Rammed . | . . . . . . . . . . . . . . . . . . . . . . . . . . . . . . . . . Walls Destroyed . | . . . . . . . . . . . . . . . . . . . . . . . . . . . . . . . . . Machines Disabled . | . . . . . . . . . . . . . . . . . . . . . . . . . . . . . . . . . Actions | -11 -10 -10 -8 -7 -7 -7 -7 -6 -6 -6 -6 -6 -6 -6 -6 -5 -5 -5 -5 -4 -4 -4 -4 -4 -3 -3 -3 -2 -2 -2 -1 -1 --------- Run | Yrd Mat Sub Mat Fac Low Low Dat Pro Fac Was Fac Ext Cet Arc Hub Fac Upp Upp War Pro Fac Upp Upp Zhi Pro Res Qua Res Tes Sec Acc Com Total 34725 | 147 700 1459 1125 1125 1492 601 88 472 1099 144 1200 1213 447 1233 1256 1733 838 623 1192 300 2176 1326 683 195 559 1341 2415 1162 1582 2138 1290 1371 Wait 7168 | 4 633 133 61 104 243 61 . 168 66 13 231 348 195 1015 174 268 37 147 169 26 508 619 70 . 128 242 547 120 242 367 139 90 Move 25288 | 121 65 1127 863 926 1224 523 83 283 957 118 925 701 227 190 1009 1419 774 455 949 272 1571 677 583 173 408 1016 1756 961 1206 1597 1043 1086 Hop 64 | . . . . 10 . 2 . 1 1 . 5 7 . . 14 7 . . . . 7 . . . . 4 6 . . . . . Pick Up 143 | 4 2 14 13 7 . 2 1 2 2 2 3 5 2 4 2 5 2 2 4 . 3 . . . 1 7 9 11 12 12 6 4 Fast Attach 225 | 7 . 14 31 8 1 1 . 3 3 1 4 4 5 5 5 2 1 4 12 . 8 1 2 8 1 7 14 12 16 21 9 15 Attach 89 | . . 14 1 3 . 1 2 1 1 2 3 5 2 2 2 3 4 . . . 2 . 1 . 2 4 3 4 7 5 3 12 Detach 76 | . . 12 1 1 . . . 2 1 2 2 5 3 2 1 1 2 4 . . 4 . 1 1 2 4 1 5 4 2 1 12 Swap 264 | . . 16 12 9 6 4 1 2 2 . 10 3 1 2 17 14 2 1 3 1 27 9 7 . 8 16 9 4 12 37 9 20 Drop 294 | . . 33 33 9 . 4 1 5 2 3 4 6 7 9 8 5 3 5 16 . 10 1 1 6 2 11 15 15 28 20 9 23 Fire 304 | 11 . 86 109 29 2 . . . . 3 . 4 . . 2 . . 5 . . . . 2 . . . . 1 14 4 4 28 Melee 600 | . . . . 15 14 3 . 1 11 . 13 23 2 4 22 9 13 . 8 1 36 19 16 7 7 30 55 29 41 73 67 81 Ram . | . . . . . . . . . . . . . . . . . . . . . . . . . . . . . . . . . Kick . | . . . . . . . . . . . . . . . . . . . . . . . . . . . . . . . . . Crush 1 | . . . 1 . . . . . . . . . . . . . . . . . . . . . . . . . . . . . Escape Stasis 75 | . . . . 4 . . . . 53 . . 18 . . . . . . . . . . . . . . . . . . . . Rewire 118 | . . . . . . . . 3 . . . 84 . . . . . . 31 . . . . . . . . . . . . . Trap 6 | . . . . . 2 . . 1 . . . . 3 . . . . . . . . . . . . . . . . . . . Miscellaneous 10 | . . 10 . . . . . . . . . . . . . . . . . . . . . . . . . . . . . . Route ------- -11/Scrapyard -10/Materials -10/Subcaves (discovered 2 exits: *Mat / [*Rec]) -8/Materials -7/Factory (discovered 3 exits: *Fac / *Low x2) -7/Lower Caves (discovered 2 exits: *Low / *Zio) -7/Lower Caves (discovered 2 exits: *Fac / *Dat) -7/Data Miner -6/Proximity Caves -6/Factory (discovered 6 exits: Fac x4 / *Low / Ext) -6/Waste -6/Factory (discovered 8 exits: Fac x4 / Low x2 / *Ext x2) -6/Extension (discovered 3 exits: *Fac x2 / *Cet) -6/Cetus -6/Archives (discovered 3 exits: *Fac / *Hub x2) -6/Hub_04(d) (discovered 4 exits: *Fac x4) -5/Factory (discovered 3 exits: *Fac / *Upp x2) -5/Upper Caves -5/Upper Caves (discovered 2 exits: *Fac / *War) -5/Warlord -4/Proximity Caves -4/Factory (discovered 6 exits: Res x4 / *Upp x2) -4/Upper Caves -4/Upper Caves -4/Zhirov -3/Proximity Caves -3/Research (discovered 3 exits: Arm / *Qua x2) -3/Quarantine -2/Research (discovered 3 exits: *Acc x2 / *Tes) -2/Testing (discovered 2 exits: *Acc / *Sec) -2/Section 7 -1/Access -1/Command Free Derelict Territories History --------- Turn | Location | Event 3 | -11/Scrapyard | Discovered new exit (range 14) 235 | -11/Scrapyard | Entered Materials 312 | -10/Materials | Build established: Mutant 907 | -10/Materials | Discovered new exit (range 5) 974 | -10/Materials | Entered Subcaves 1069 | -10/Subcaves | Disturbed a concealed Subdweller 1287 | -10/Subcaves | Shifting Twisted Machinery released Sub. Laser 1292 | -10/Subcaves | Shifting Twisted Machinery released Sub. Monowheel 1316 | -10/Subcaves | Shifting Twisted Machinery released Shrapnel Trap 1349 | -10/Subcaves | Shifting Twisted Machinery released Piercing Trap 1349 | -10/Subcaves | Shifting Twisted Machinery released Spk. Treads 1360 | -10/Subcaves | Discovered new exit (range 15) 1515 | -10/Subcaves | Build established: Subdweller-Mutant 1533 | -10/Subcaves | Shifting Twisted Machinery released Spk. Treads 1668 | -10/Subcaves | Learned location of Zion (-6) 1668 | -10/Subcaves | Met a Zionite searching for "candidates" 2144 | -10/Subcaves | Disturbed a concealed Subdweller 2152 | -10/Subcaves | Disturbed a concealed Subdweller 2329 | -10/Subcaves | Core integrity fell below 50% 2436 | -10/Subcaves | Build established: Mutant 2450 | -10/Subcaves | A swath of the cavern ceiling suddenly collapsed 2645 | -10/Subcaves | Ambushed by Subdwellers from Twisted Machinery 2764 | -10/Subcaves | Discovered new exit (range 5) 3061 | -10/Subcaves | Visited 4L-MR0's lab 3083 | -10/Subcaves | Found Flightbrick 3122 | -10/Subcaves | Core integrity fell below 20% 3221 | -10/Subcaves | Build established: Subdweller-Mutant 3222 | -10/Subcaves | Entered Materials 3222 | -8/Materials | Evolved 4 slots: Propulsion x3, Utility x1 3270 | -8/Materials | Repaired Spk. Treads 4046 | -8/Materials | Discovered new exit (range 15) 4073 | -8/Materials | Build established: Mutant 4116 | -8/Materials | Identified exit to Factory 4117 | -8/Materials | Entered Factory 4117 | -7/Factory | Evolved 2 slots: Utility x2 4278 | -7/Factory | Attached Flightbrick, gained temporary slots: Utility x3 4380 | -7/Factory | Identified exit to Lower Caves 4592 | -7/Factory | Fabricated Adv. Sensor Array? 4601 | -7/Factory | Discovered new exit (range 9) 4604 | -7/Factory | Identified exit to Factory 4720 | -7/Factory | Entered Lower Caves 4741 | -7/Lower Caves | A Derelict revealed a hidden shortcut to a safe place 4741 | -7/Lower Caves | Encountered a Warlord checkpoint 4746 | -7/Lower Caves | Identified exit to Zion 4856 | -7/Lower Caves | Learned 12 Factory zone layouts 4964 | -7/Lower Caves | Build established: Hacker-Scout 5112 | -7/Lower Caves | Learned Factory garrison access intel 5331 | -7/Lower Caves | Discovered new exit (range 12) 5335 | -7/Lower Caves | Identified exit to Lower Caves 5467 | -7/Lower Caves | Entered another Lower Caves area 5477 | -7/Lower Caves | Discovered exit to Factory (range 8) 5483 | -7/Lower Caves | Encountered a Warlord checkpoint 5483 | -7/Lower Caves | Learned Factory non-interactive machine intel 5488 | -7/Lower Caves | Identified exit to Data Miner 5743 | -7/Lower Caves | Entered Data Miner 5743 | -7/Data Miner | Discovered new exit (range 6) 5751 | -7/Data Miner | Met Data Miner 5761 | -7/Data Miner | Learned location of Section 7 (-2) 5761 | -7/Data Miner | Acquired the access code to Warlord's prototype stash 5766 | -7/Data Miner | Received God Mode back door access code from Data Miner 5774 | -7/Data Miner | Identified exit to Proximity Caves 5779 | -7/Data Miner | Entered Proximity Caves 5843 | -6/Proximity Caves | Learned 4 Factory zone layouts 5972 | -6/Proximity Caves | Discovered exit to Factory (range 5) 6073 | -6/Proximity Caves | Entered Factory 6073 | -6/Factory | Evolved 2 slots: Power x1, Propulsion x1 6074 | -6/Factory | Identified exit to Extension 6074 | -6/Factory | Identified exit to Factory 6075 | -6/Factory | Loaded intel: 233 non-interactive machine locations 6076 | -6/Factory | Loaded intel: 4 garrison access locations 6262 | -6/Factory | Discovered new exit (range 13) 6267 | -6/Factory | Identified exit to Lower Caves 6380 | -6/Factory | Fabricated Biomechanical Wings? 6583 | -6/Factory | Manually triggered Chute Trap 6583 | -6/Factory | Sucked down chute 6583 | -6/Factory | Entered Waste 6584 | -6/Waste | Met a frightened Derelict 6590 | -6/Waste | Spotted C-40 Crusher 6595 | -6/Waste | Spotted C-40 Crusher 6598 | -6/Waste | EMP discharged 6603 | -6/Waste | Spotted C-40 Crusher 6603 | -6/Waste | Spotted C-40 Crusher 6603 | -6/Waste | Spotted C-40 Crusher 6605 | -6/Waste | Discovered new exit (range 16) 6631 | -6/Waste | Destroyed C-40 Crusher 6631 | -6/Waste | Destroyed C-40 Crusher 6649 | -6/Waste | Spotted C-40 Crusher 6654 | -6/Waste | Identified exit to Factory 6655 | -6/Waste | Entered Factory 6712 | -6/Factory | Repaired Lgt. Fission Core 6798 | -6/Factory | Fabricated Biomechanical Wings (x1) 6844 | -6/Factory | Fabricated Combat Drone Bay (x1) 7274 | -6/Factory | Entered Extension 7293 | -6/Extension | Rescued A7 7395 | -6/Extension | Rescued a captive Derelict 7395 | -6/Extension | Rescued a captive Derelict 7427 | -6/Extension | Rescued a captive Derelict 7430 | -6/Extension | Rescued a captive Derelict 7495 | -6/Extension | Lost 4 allies 7799 | -6/Extension | Spotted B-75 Beast 7821 | -6/Extension | Spotted B-75 Beast 7823 | -6/Extension | Allies destroyed B-75 Beast 7831 | -6/Extension | Door terminal overloaded 7834 | -6/Extension | Discovered exit to Factory (range 14) 7837 | -6/Extension | Rewired B-75 Beast 7850 | -6/Extension | Rescued a captive Derelict 7854 | -6/Extension | Rescued a captive Derelict 7862 | -6/Extension | Rescued a captive Derelict 7873 | -6/Extension | Lost 6 allies 7921 | -6/Extension | Rescued a captive Derelict 7922 | -6/Extension | Rescued a captive Derelict 7937 | -6/Extension | Rescued a captive Derelict 7937 | -6/Extension | Rescued a captive Derelict 7982 | -6/Extension | Discovered exit to Factory (range 10) 7983 | -6/Extension | Discovered new exit (range 6) 7985 | -6/Extension | Identified exit to Cetus 8080 | -6/Extension | Entered Cetus 8080 | -6/Cetus | Accompanied by 12 allies (A7) 8085 | -6/Cetus | Acquired a Cetus Manufacturing Module code from A7 8119 | -6/Cetus | Spotted Cetus Guard 8119 | -6/Cetus | Spotted Cetus Guard 8125 | -6/Cetus | Allies destroyed Cetus Guard 8135 | -6/Cetus | Spotted Cetus Guard 8137 | -6/Cetus | Allies destroyed Cetus Guard 8138 | -6/Cetus | Allies destroyed Cetus Guard 8140 | -6/Cetus | Allies destroyed Cetus Guard 8169 | -6/Cetus | Lost 6 allies 8176 | -6/Cetus | Started Cetus Manufacturing Module 8180 | -6/Cetus | Discovered new exit (range 16) 8201 | -6/Cetus | Manufactured an Enhanced Grunt 8226 | -6/Cetus | Manufactured an Enhanced Grunt 8227 | -6/Cetus | Escorted A7 to Cetus Mainframe 8251 | -6/Cetus | Manufactured an Enhanced Grunt 8276 | -6/Cetus | Manufactured an Enhanced Grunt 8301 | -6/Cetus | Manufactured an Enhanced Grunt 8348 | -6/Cetus | Identified exit to Archives 8386 | -6/Cetus | Entered Archives 8386 | -6/Archives | Accompanied by 11 allies (A7) 8391 | -6/Archives | Received a hacking code to weaken MAIN.C 8395 | -6/Archives | Found Prototype Protection 8395 | -6/Archives | Identified Med. Regenerative Plating 8404 | -6/Archives | Discovered new exit (range 26) 8437 | -6/Archives | Discovered exit to Factory (range 15) 8514 | -6/Archives | Discovered new exit (range 15) 8520 | -6/Archives | Identified exit to Hub_04(d) 8701 | -6/Archives | Build established: Hacker-Mutant 9500 | -6/Archives | Entered Hub_04(d) 9500 | -6/Hub_04(d) | Accompanied by 10 allies 9666 | -6/Hub_04(d) | Discovered exit to Factory (range 15) 9684 | -6/Hub_04(d) | Discovered exit to Factory (range 16) 9706 | -6/Hub_04(d) | Lost 6 allies 9738 | -6/Hub_04(d) | Discovered exit to Factory (range 5) 9900 | -6/Hub_04(d) | Found Prototype Device 9900 | -6/Hub_04(d) | Identified Exp. Thermal Shield 9913 | -6/Hub_04(d) | Discovered exit to Factory (range 9) 9960 | -6/Hub_04(d) | Network Hub disabled 10002 | -6/Hub_04(d) | Hacking Suite fried by hacking feedback 10090 | -6/Hub_04(d) | Spotted Lightning 10093 | -6/Hub_04(d) | Network Hub disabled 10093 | -6/Hub_04(d) | Spotted Lightning 10095 | -6/Hub_04(d) | Spotted Lightning 10105 | -6/Hub_04(d) | Spotted B-75 Beast 10139 | -6/Hub_04(d) | Entered Factory 10139 | -5/Factory | Evolved 2 slots: Utility x2 10155 | -5/Factory | Found Prototype Launcher 10203 | -5/Factory | Identified exit to Upper Caves 10225 | -5/Factory | Repaired Greatsword 10286 | -5/Factory | Identified Rocket Array 10367 | -5/Factory | Discovered new exit (range 3) 10367 | -5/Factory | Identified exit to Factory 10448 | -5/Factory | Fabricated Adv. Hacking Suite? 10956 | -5/Factory | Entered Upper Caves 10959 | -5/Upper Caves | Learned location of Armory (-3) 11208 | -5/Upper Caves | Build established: Hacker-Scout 11282 | -5/Upper Caves | Discovered new exit (range 10) 11307 | -5/Upper Caves | Identified exit to Upper Caves 11312 | -5/Upper Caves | Entered another Upper Caves area 11330 | -5/Upper Caves | Discovered exit to Factory (range 12) 11355 | -5/Upper Caves | Learned Factory stockpile data 11519 | -5/Upper Caves | Attracted the attention of an 0b10 checkpoint 11559 | -5/Upper Caves | Discovered new exit (range 12) 11563 | -5/Upper Caves | Identified exit to Warlord 11623 | -5/Upper Caves | Learned Extension stockpile data 11623 | -5/Upper Caves | Learned Armory garrison access intel 11638 | -5/Upper Caves | Entered Warlord 11659 | -5/Warlord | Discovered new exit (range 8) 11662 | -5/Warlord | Identified exit to Proximity Caves 11848 | -5/Warlord | Found Prototype Device 11848 | -5/Warlord | Identified Minesniffer Drone Bay 11877 | -5/Warlord | Met Warlord 11880 | -5/Warlord | Opened Warlord's prototype stash 11883 | -5/Warlord | Found Prototype Reactor 11883 | -5/Warlord | Identified Vortex Chain Reactor 11896 | -5/Warlord | Found Prototype Processor 11902 | -5/Warlord | Warlord's base attacked by MAIN.C 11989 | -5/Warlord | Found Prototype Piercing Weapon 11989 | -5/Warlord | Identified Vortex Lance 11996 | -5/Warlord | Identified Spectral Analyzer 11999 | -5/Warlord | Found Vortex Lance 12002 | -5/Warlord | Found Prototype Launcher 12002 | -5/Warlord | Identified Vortex Catalyst Activator 12117 | -5/Warlord | Warlord forces counterattacked 12134 | -5/Warlord | Lost 5 allies 12190 | -5/Warlord | Entered Proximity Caves 12256 | -4/Proximity Caves | Learned Research trap positions 12294 | -4/Proximity Caves | Entered Factory 12294 | -4/Factory | Evolved 2 slots: Utility x2 12371 | -4/Factory | Repaired Rocket Array 12436 | -4/Factory | Fabricated Adv. Transmission Jammer (x1) 12767 | -4/Factory | Fabricated Exp. Signal Interpreter (x1) 12800 | -4/Factory | Identified exit to Research 12879 | -4/Factory | Fabricated Exp. System Shield (x1) 12888 | -4/Factory | Found Prototype Launcher 12888 | -4/Factory | Identified Tesla Bomb Launcher 12935 | -4/Factory | Build established: Wizard-Scout 13005 | -4/Factory | Identified exit to Upper Caves 13340 | -4/Factory | Cargo convoy interrupted 13341 | -4/Factory | Spotted Striker 13402 | -4/Factory | Entered Upper Caves 13452 | -4/Upper Caves | Encountered a Warlord checkpoint 14169 | -4/Upper Caves | Attracted the attention of an 0b10 checkpoint 14218 | -4/Upper Caves | Discovered new exit (range 7) 14220 | -4/Upper Caves | Identified exit to Upper Caves 14277 | -4/Upper Caves | Entered another Upper Caves area 14538 | -4/Upper Caves | Learned Research terminal intel 14542 | -4/Upper Caves | Spotted B-86 Titan 14568 | -4/Upper Caves | Discovered new exit (range 12) 14572 | -4/Upper Caves | Attracted the attention of an 0b10 checkpoint 14574 | -4/Upper Caves | Identified exit to Zhirov 14574 | -4/Upper Caves | Entered Zhirov 14574 | -4/Zhirov | Discovered new exit (range 3) 14579 | -4/Zhirov | Met Zhirov 14584 | -4/Zhirov | Learned location of Quarantine (-3) 14584 | -4/Zhirov | Learned location of Testing (-2) 14584 | -4/Zhirov | Learned location of Command (-1) 14587 | -4/Zhirov | Zhirov requested help retrieving the SGEMP Prototype 14593 | -4/Zhirov | Found Alien Artifact 14593 | -4/Zhirov | Identified Integrated Dissipator 14593 | -4/Zhirov | Installed Integrated Dissipator, increased core heat dissipation (+20) 14658 | -4/Zhirov | Identified exit to Proximity Caves 14658 | -4/Zhirov | Entered Proximity Caves 14737 | -3/Proximity Caves | Spotter reported a threat 14909 | -3/Proximity Caves | Spotter reported a threat 14930 | -3/Proximity Caves | Discovered exit to Research (range 7) 14936 | -3/Proximity Caves | Entered Research 14936 | -3/Research | Evolved 2 slots: Propulsion x1, Utility x1 14937 | -3/Research | Identified exit to Quarantine 14938 | -3/Research | Loaded intel: 75 trap records 14939 | -3/Research | Loaded intel: 23 terminal locations 15186 | -3/Research | Search patrols dispatched 15234 | -3/Research | Identified exit to Armory 15252 | -3/Research | Build established: Hacker-Ninja 15312 | -3/Research | Fabricated Centrium Greatsword (x1) 15445 | -3/Research | Found Exp. Hacking Suite 15520 | -3/Research | Repaired Imp. Diametric Drive 15578 | -3/Research | Entered Quarantine 15588 | -3/Quarantine | Found Alien Reactor 15588 | -3/Quarantine | Identified Matter Drive 15599 | -3/Quarantine | Found Alien Artifact 15599 | -3/Quarantine | Identified Phase Armor 15633 | -3/Quarantine | Repaired Exp. Propulsion Shielding 15667 | -3/Quarantine | Found Alien Artifact 15725 | -3/Quarantine | P-80 Master assimilated allied Director 8a 15732 | -3/Quarantine | Cryocooling Duct disabled 15747 | -3/Quarantine | Ambient heat levels rising (+20) 15747 | -3/Quarantine | Non-combat units ordered to evacuate 15852 | -3/Quarantine | Found Alien Slashing Weapon 15852 | -3/Quarantine | Identified Sigix Broadsword 16091 | -3/Quarantine | Build established: Wizard-Ninja 16091 | -3/Quarantine | System corruption reached 10% 16147 | -3/Quarantine | Found Alien Artifact 16156 | -3/Quarantine | Identified Phase Redirector 16156 | -3/Quarantine | Identified Subatomic Replicator 16161 | -3/Quarantine | Discovered new exit (range 19) 16185 | -3/Quarantine | Found Alien Artifact 16197 | -3/Quarantine | Exp. System Shield fried by hacking feedback 16202 | -3/Quarantine | Identified Core Reset Matrix 16342 | -3/Quarantine | Central database locked down 16410 | -3/Quarantine | Found Prototype Device 16410 | -3/Quarantine | Identified Exp. Focal Shield 16540 | -3/Quarantine | Identified exit to Research 16853 | -3/Quarantine | Entered Research 16853 | -2/Research | Warlord forces began assault on 0b10 16853 | -2/Research | Evolved 2 slots: Propulsion x1, Utility x1 16895 | -2/Research | Fabricated Cmb. Linear Gravjet (x2) 16963 | -2/Research | Research machine network offline 17058 | -2/Research | Lost 5 allies 17110 | -2/Research | Met up with Warlord 17154 | -2/Research | Discovered new exit (range 5) 17155 | -2/Research | Identified exit to Access 17176 | -2/Research | Borebot progress halted 17229 | -2/Research | Discovered new exit (range 4) 17230 | -2/Research | Identified exit to Testing 17248 | -2/Research | Discovered exit to Access (range 16) 17294 | -2/Research | Lost 5 allies 17329 | -2/Research | Found Fusion Bomb Launcher 17355 | -2/Research | Found Prototype Device 17355 | -2/Research | Identified Exp. Transmission Jammer 17475 | -2/Research | Entered Testing 17493 | -2/Testing | Found Prototype Launcher 17545 | -2/Testing | Identified Z-bomb Delivery System 17574 | -2/Testing | Found Prototype Launcher 17581 | -2/Testing | Identified Adv. Micro-nuke Launcher 17610 | -2/Testing | Repaired Imp. Cloaking Device 17640 | -2/Testing | Found Prototype Energy Gun 17640 | -2/Testing | Identified Tachyon Dispersion Ray 17665 | -2/Testing | Fabricated Cmb. Linear Gravjet (x2) 17711 | -2/Testing | Found Prototype Energy Cannon 17711 | -2/Testing | Identified Hpw. Disruptor Cannon 17735 | -2/Testing | Found Prototype Device 17735 | -2/Testing | Identified Exp. Hardlight Generator 17785 | -2/Testing | Scanned by Researcher 17841 | -2/Testing | Lost 3 allies 17847 | -2/Testing | Spotted Striker 17961 | -2/Testing | Discovered exit to Access (range 16) 18017 | -2/Testing | Found Prototype Energy Cannon 18017 | -2/Testing | Identified Imp. Potential Cannon 18032 | -2/Testing | Spotted PL-EH4F3Z8MH8 18084 | -2/Testing | Destroyed PL-EH4F3Z8MH8 18089 | -2/Testing | Found Exp. Melee Analysis Suite 18092 | -2/Testing | Found Prototype Slashing Weapon 18092 | -2/Testing | Identified Vibroblade 18097 | -2/Testing | Found Prototype Device 18097 | -2/Testing | Identified Femtoactuators 18103 | -2/Testing | Found Prototype Processor 18120 | -2/Testing | Identified Exp. Core Analyzer 18295 | -2/Testing | Spotted Fortress 18350 | -2/Testing | Discovered new exit (range 6) 18351 | -2/Testing | Identified exit to Section 7 18366 | -2/Testing | Entered Section 7 18389 | -2/Section 7 | Found Alien Artifact 18405 | -2/Section 7 | Identified Spacefold Activator 18473 | -2/Section 7 | Found Alien Artifact 18487 | -2/Section 7 | Spotted S7 Guard 18522 | -2/Section 7 | Destroyed S7 Guard 18533 | -2/Section 7 | Found Alien Artifact 18533 | -2/Section 7 | Identified Core Regenerator 18533 | -2/Section 7 | Used Core Regenerator, restored core integrity (+44) 18602 | -2/Section 7 | Spotted Alpha 7 18639 | -2/Section 7 | Spotted Alpha 7 19049 | -2/Section 7 | Identified Integrity Redistributor 19087 | -2/Section 7 | Spotted B-90 Cyclops 19120 | -2/Section 7 | Found Integrated Dissipator 19120 | -2/Section 7 | Installed Integrated Dissipator, increased core heat dissipation (+20) 19202 | -2/Section 7 | Found Prototype Device 19208 | -2/Section 7 | Identified Exp. Force Field 19281 | -2/Section 7 | Spotted Executioner 19281 | -2/Section 7 | Spotted Executioner 19318 | -2/Section 7 | Spotted B-99 Colossus 19341 | -2/Section 7 | Found Alien Artifact 19341 | -2/Section 7 | Identified Core Expander 19341 | -2/Section 7 | Installed Core Expander, added new Propulsion slot 19343 | -2/Section 7 | Found Core Expander 19343 | -2/Section 7 | Installed Core Expander, added new Power slot 19345 | -2/Section 7 | Found Core Expander 19345 | -2/Section 7 | Installed Core Expander, added new Weapon slot 19362 | -2/Section 7 | Used Subatomic Replicator to replicate Alien Artifact 19363 | -2/Section 7 | Found Alien Artifact 19363 | -2/Section 7 | Identified LRC Energy Well 19363 | -2/Section 7 | Installed LRC Energy Well, increased energy storage capacity (+250) 19365 | -2/Section 7 | Installed LRC Energy Well, increased energy storage capacity (+250) 19366 | -2/Section 7 | First assault squad dispatched 19554 | -2/Section 7 | Found Prototype Device 19565 | -2/Section 7 | Used Integrity Redistributor, redistributed integrity from core (-75) 19570 | -2/Section 7 | Found Integrity Redistributor 19580 | -2/Section 7 | Entered Access 19585 | -1/Access | Identified exit to Command 19643 | -1/Access | Adv. Hacking Suite fried by hacking feedback 20165 | -1/Access | Spotted B-99 Colossus 20201 | -1/Access | Entered Command 20202 | -1/Command | Identified Exp. Actuator Array 20401 | -1/Command | Disengaged cave seal 20401 | -1/Command | Derelicts emerged from the dark tunnel 20401 | -1/Command | Welcomed Warlord to Command 20469 | -1/Command | Disengaged cave seal 20469 | -1/Command | Derelicts emerged from the dark tunnel 20500 | -1/Command | Lost 6 allies 20583 | -1/Command | Spotted B-99 Colossus 20603 | -1/Command | Destroyed B-99 Colossus 20606 | -1/Command | Found Prototype Ballistic Gun 20606 | -1/Command | Identified Multirail 20659 | -1/Command | Spotted M Guard 20659 | -1/Command | Spotted M Guard 20659 | -1/Command | Spotted Combat Programmer 20659 | -1/Command | Spotted Combat Programmer 20691 | -1/Command | Warlord commented on Warlord statues 20725 | -1/Command | Destroyed Combat Programmer 20737 | -1/Command | Combat Programmer assimilated allied 1W-H4W(M) 20756 | -1/Command | Lost 9 allies 20762 | -1/Command | Combat Programmer assimilated allied 1Z-6Q8(M) 20764 | -1/Command | All MAIN.C guards destroyed 20774 | -1/Command | Found Prototype Device 20774 | -1/Command | Identified AEGIS Remote Shield 20785 | -1/Command | Found Prototype Reactor 20785 | -1/Command | Identified Zero-point Reactor 20804 | -1/Command | Used Integrity Redistributor, redistributed integrity from core (-171) 20819 | -1/Command | Met MAIN.C 20819 | -1/Command | Hacked MAIN.C using A7's code 20858 | -1/Command | 0b10 Conduit disabled 20858 | -1/Command | Destroyed MAIN.C Shell 20860 | -1/Command | MAIN.C activated Command garrisons 20895 | *** | Establishing Free Derelict Territories! Last Messages --------------- 20888_ System corrupted: Component data lost. 20888_ MAIN.C reaction time slowed by virus. 20888_ Blast Slug penetrates 0b10 Conduit. 20888_ Blast Slug penetrates MAIN.C. 20888_ MAIN.C knocked back. 20888_ Blast Slug penetrates 0b10 Conduit. 20888_ Blast Slug penetrates MAIN.C. 20891_ Destroyed Cld. Antigrav System. 20893_ MAIN.C reaction time slowed by virus. 20894_ Blast Slug penetrates 0b10 Conduit. 20894_ Blast Slug penetrates MAIN.C. 20894_ MAIN.C: "I hope you know you're still going to DIE HERE WITH ME!" Heavy Barrier opened. 20894_ MAIN.C destroyed. 20894_ Blast Slug penetrates Reinforced Barrier. 20894_ Blast Slug penetrates 0b10 Conduit. ZY-L1N: Victory! Sure there's still lots to do, but without MAIN.C at the helm 0b10 doesn't stand a chance. We've got this... Map ----- +----------------------------------------------------+ | ?????????????????????????????????????????????????? | | ?????????????????????????????????????????????????? | | ?????????????????????????????????????????????????? | | ?????????????????????????????????????????????????? | | ?????????????????????????????????????????????????? | | ?????????????????????????????????????????????????? | | ?????????????????????????????????????????????????? | | ?????????????????????????????????????????????????? | | ?????????????????????????????????????????????????? | | ?????????????????????????????????????????????????? | | ?????????????????????????????????????????????????? | | ?????????????????????????????????????????????????? | | ?????????????????????????????????????????????????? | | ?????????????????????????????????????????????????? | | ?????????????????????????????????????????????????? | | ?????????????????????????????????????????????????? | | ?????????????????????????????????????????????????? | | ?????????????????????????????????????????????????? | | ?????????????????????#######################?????? | | ?????????????????????#""""""" """" #?????? | | ?????????????????????#"" "" #?????? | | ?????????????????????#""""" "" ####### | | ?????????????????????#"" """""""" / | | ?????????????????????# """ / | | ?????????????????????#" $ " / | | ?????????????????????# @ !=! ####### | | ?????????????????????# " W *%! #?????? | | ?????????????????????# " !][ #?????? | | ?????????????????????# ! ""#?????? | | ?????????????????????#" "" """ / % """#?????? | | ?????????????????????#"" "" " """"#?????? | | ?????????????????????# " """ """""#?????? | | ?????????????????????# " " " " #?????? | | ?????????????????????# " " " " #?????? | | ????????????????????? " " " """" " #?????? | | ????????????????????? """ " " """ #?????? | | ???????????????????? " " " " #?????? | | ????????????????????## """"""""" " #?????? | | ?????????????????????# " """ " """"""""#?????? | | ?????????????????????# """ " " " #?????? | | ?????????????????????#######################?????? | | ?????????????????????????????????????????????????? | | ?????????????????????????????????????????????????? | | ?????????????????????????????????????????????????? | | ?????????????????????????????????????????????????? | | ?????????????????????????????????????????????????? | | ?????????????????????????????????????????????????? | | ?????????????????????????????????????????????????? | | ?????????????????????????????????????????????????? | | ?????????????????????????????????????????????????? | +----------------------------------------------------+ Best States ------------- Heat Dissipation 130 Energy Generation 77 Energy Capacity 1340 Matter Stores 300 Matter Capacity 300 Sight Range 24 Robot Scan Range 18 Terrain Scan Density 10 Jamming Range 22 Cloak Strength 3 Armor Coverage 800 Resistance: TH 10 Propulsion Shielding 90 Melee Speed Boost 50 Phase Shifting 15 Evasion (%) 85 Melee Accuracy 18 Core Analysis 8 Armor Integrity Analysis 30 Recoil Reduction 3 Offensive Hacking 44 Defensive Hacking 26 Authchip Count 2 Trap Extractor Capacity 6 Item Schematics ----------------- Hacking Suite | -8/Materials | Scanalyzed Adv. Sensor Array | -7/Factory | Hacked Combat Drone Bay | -7/Data Miner | Free Lgt. Regenerative Plating | -7/Data Miner | Free Biomechanical Wings | -7/Data Miner | Free Exp. Targeting Computer | -7/Data Miner | Free Shock Maul | -7/Data Miner | Free Cmb. Gravmag System | -7/Data Miner | Free Adv. Cooling System | -7/Data Miner | Free Lrn. Proton Cannon | -7/Data Miner | Free Imp. Medium Treads | -7/Data Miner | Free Antigrav System | -7/Data Miner | Free Imp. Force Field | -7/Data Miner | Free Adv. Hacking Suite | -6/Factory | Hacked Imp. Transmission Jammer | -6/Extension | Hacked Lrn. Sensor Array | -5/Factory | Hacked Q-thruster | -5/Factory | Hacked Adv. Reaction Control System | -5/Factory | Hacked Cmb. Linear Gravjet | -4/Factory | Hacked Exp. Signal Interpreter | -4/Factory | Hacked Exp. System Shield | -4/Factory | Hacked Exp. Utility Shielding | -4/Factory | Hacked Exp. Hacking Suite | -4/Factory | Hacked Assault Drone Bay | -4/Zhirov | Free Exp. Heat Sink | -4/Zhirov | Free Exp. Optical Array | -4/Zhirov | Free Imp. Arc Thrower | -4/Zhirov | Free Centrium Greatsword | -3/Research | Hacked Exp. Melee Analysis Suite | -3/Quarantine | Hacked Cld. Antigrav System | -2/Testing | Archive Com. Mass Driver | -2/Testing | Archive Adv. EM Disruption Field | -2/Testing | Archive Hvy. Wave Gun | -2/Testing | Archive Adv. Quantum Shading Machine | -2/Testing | Archive Cld. Q-thruster | -2/Testing | Archive Adv. Remote Shield | -2/Testing | Archive Adv. Plasma Rifle | -2/Testing | Archive Prc. Energy Filter | -2/Testing | Archive Exp. Myomer Leg | -2/Testing | Archive Exp. Force Field | -2/Section 7 | Scanalyzed Hdn. Centrium Wheel | -2/Section 7 | Archive Plasma Sword | -2/Section 7 | Archive Imp. Q-thruster | -2/Section 7 | Archive Hvy. Dispersion Rifle | -2/Section 7 | Archive Robot Schematics ------------------ M-14 Sweeper | -7/Data Miner | Free R-10 Processor | -7/Data Miner | Free S-27 Virus | -7/Data Miner | Free H-66 Slayer | -7/Data Miner | Free G-50 Soldier | -7/Data Miner | Free X-72 Disruptor | -7/Data Miner | Free Y-64 Sentinel | -7/Data Miner | Free G-73 Enforcer | -2/Testing | Archive A-02 Transporter | -2/Section 7 | Archive S-43 Plague | -2/Section 7 | Archive R-06 Scavenger | -2/Section 7 | Archive Fabricated ------------ Adv. Sensor Array | x1 | -7/Factory | Authchip Biomechanical Wings | x1 | -6/Factory Biomechanical Wings | x1 | -6/Factory | Authchip Combat Drone Bay | x1 | -6/Factory | Authchip Adv. Hacking Suite | x1 | -5/Factory Adv. Transmission Jammer | x1 | -4/Factory | Preloaded Exp. Signal Interpreter | x1 | -4/Factory Exp. System Shield | x1 | -4/Factory Centrium Greatsword | x1 | -3/Research Cmb. Linear Gravjet | x2 | -2/Research Cmb. Linear Gravjet | x2 | -2/Testing Alien Tech Used ----------------- Integrated Dissipator Matter Drive Phase Armor Sigix Broadsword Core Regenerator Spacefold Activator Core Expander Subatomic Replicator LRC Energy Well Integrity Redistributor Achievements -------------- None Challenges ------------ None Game ------ Seed AssaultElectronNullifier Manual? 0 Play Time 06:02:29 Cumulative 409.4 hours Start 2024.01.09 @ 22:35:39 End 2024.01.10 @ 04:42:25 Sessions 1 Manual Loads 0 Difficulty Rogue Special Mode None Game No. 147 Rogue 132 Adventurer 15 Explorer 0 Win Type 7 Total 26 Types 7/1/7/2/2/0/4/2/1 Lore% 89 Gallery% 91 Achievement% 83 Wizard Run 0 Options --------- ASCII 0 Keyboard 0 Movement Numpad Keybinds 0 Fullscreen 1 Font 18/SmallcapsGlow Map View 76x50 Zoom Use 0% Tactical HUD 1 Map Filters NONE Filters NONE Steam 1 RUN: 7d2c795c-559e-4cbd-a0ac-659b2d1082ca